Workbook

Sheet الرئيسية
A8: ملحوظة البرنامج مازال تحت الإنشاء والتجربة

Sheet مشتريات
A2: قـــــــائـــــــــمة المشـــــــــــــــتريــــــات / الــــــــــــــوارد
A3: الرقم | B3: كود الصنف | C3: اسم الصنف | D3: نوع | E3: كمية | F3: عدد | G3: سعر | H3: اجمالى | I3: ملاحظات | J3: تــاريخ الشراء | K3: اسم المورد | L3: رقـــم الفــاتورة | M3: المدفوع | N3: الباقى
A4: =IF($C$4="","",1) -> 1 | B4: 2 | C4: معجون اسنان جميل | D4: دستة | E4: 10 | F4: 120 | G4: 20 | H4: 200 | J4: 2019-11-01 | K4: وش السعد | L4: 1 | N4: =IF(H4="","",H4-M4) -> 200
A5: =IF(C5="","",A4+1) -> 2 | B5: 1 | C5: كريم شعر حلو قوى | D5: عدد | E5: 5 | F5: 5 | G5: 7 | H5: 35 | J5: 2019-11-01 | K5: وش السعد | L5: 1 | N5: =IF(H5="","",H5-M5) -> 35
A6: =IF(C6="","",A5+1) -> 3 | B6: 1 | C6: كريم شعر حلو قوى | D6: عدد | E6: 25 | F6: 25 | G6: 4 | H6: 100 | J6: 2019-08-01 | K6: وش السعد | L6: 2
A70: =IF(C70="","",A69+1) -> 
A134: =IF(C134="","",A133+1) -> 
A198: =IF(C198="","",A197+1) -> 
A262: =IF(C262="","",A261+1) -> 
A326: =IF(C326="","",A325+1) -> 
A390: =IF(C390="","",A389+1) -> 
A454: =IF(C454="","",A453+1) -> 
A518: =IF(C518="","",A517+1) -> 
A582: =IF(C582="","",A581+1) -> 
A646: =IF(C646="","",A645+1) -> 
A710: =IF(C710="","",A709+1) -> 
N755: =IF(H755="","",H755-M755) -> 

Sheet مبيعات
A2: قـــــــائـــــــــمة المبــيــــــــــعات / الــــــــــمـــــــنــــــــــصرف
A3: الرقم | B3: كود الصنف | C3: اسم الصنف | D3: نوع | E3: كمية | F3: عدد | G3: سعر | H3: اجمالى | I3: ملاحظات | J3: تــاريخ الشراء | K3: اسم المورد | L3: رقـــم الفــاتورة | M3: المدفوع | N3: الباقى
A4: =IF($C$4="","",1) -> 1 | B4: 1 | C4: كريم شعر حلو قوى | D4: دستة | E4: 12 | F4: 144 | G4: 32 | H4: 384 | J4: 2019-11-01 | K4: فكرى | L4: 1
A5: =IF(C5="","",A4+1) -> 2 | B5: 2 | C5: معجون اسنان جميل | D5: عدد | E5: 25 | F5: 25 | G5: 4 | H5: 100 | J5: 2019-11-01 | K5: فكرى | L5: 1
A6: =IF(C6="","",A5+1) -> 
A70: =IF(C70="","",A69+1) -> 
A134: =IF(C134="","",A133+1) -> 
A198: =IF(C198="","",A197+1) -> 
A262: =IF(C262="","",A261+1) -> 
A326: =IF(C326="","",A325+1) -> 
A390: =IF(C390="","",A389+1) -> 
A454: =IF(C454="","",A453+1) -> 
A518: =IF(C518="","",A517+1) -> 
A582: =IF(C582="","",A581+1) -> 
A646: =IF(C646="","",A645+1) -> 
A710: =IF(C710="","",A709+1) -> 

Sheet مخزون
B2: قـــــــائـــــــــمه المخــــــــــــزون
B3: الرقم | C3: الصنف | D3: الوحدة | E3: رقم الصنف | F3: الكمية الوادرة | G3: الكمية المنصرفة | H3: الرصيد | I3: دستة
B4: 1 | C4: كريم شعر حلو قوى | D4: =الاصناف!C4 -> علبة | E4: =SUMIF(الاصناف!$B$4:$B$999,C4,الاصناف!A$4:$A1001) -> 1 | F4: =SUMIF(مشتريات!$B$4:$B$9000,$E4,مشتريات!$E$4:$E$5000) -> 30 | G4: =SUMIF(مبيعات!$B$4:$B$9000,$E4,مبيعات!$E$4:$E$5000) -> 12 | H4: =F4-G4 -> 18 | I4: =H4/12 -> 1.5
B5: =IF(C5<>"",B4+1,"") -> 2 | C5: =الاصناف!B5 -> معجون اسنان جميل | D5: =الاصناف!C5 -> انبوبة | E5: =SUMIF(الاصناف!$B$4:$B$999,C5,الاصناف!$A$4:B1002) -> 2 | F5: =SUMIF(مشتريات!$B$4:$B$9000,$E5,مشتريات!$E$4:$E$5000) -> 10 | G5: =SUMIF(مبيعات!$B$4:$B$9000,$E5,مبيعات!$E$4:$E$5000) -> 25 | H5: -15 | I5: =H5/12 -> -1.25
B6: 3 | C6: =الاصناف!B6 -> 0 | D6: =الاصناف!C6 -> 0 | E6: =SUMIF(الاصناف!$B$4:$B$999,C6,الاصناف!$A$4:B1003) -> 0 | F6: =SUMIF(مشتريات!$B$4:$B$9000,$E6,مشتريات!$E$4:$E$5000) -> 0 | G6: =SUMIF(مبيعات!$B$4:$B$9000,$E6,مبيعات!$E$4:$E$5000) -> 0 | H6: 0 | I6: 0
B7: 4 | C7: =الاصناف!B7 -> 0 | D7: =الاصناف!C7 -> 0 | E7: =SUMIF(الاصناف!$B$4:$B$999,C7,الاصناف!$A$4:B1004) -> 0 | F7: =SUMIF(مشتريات!$B$4:$B$9000,$E7,مشتريات!$E$4:$E$5000) -> 0 | G7: =SUMIF(مبيعات!$B$4:$B$9000,$E7,مبيعات!$E$4:$E$5000) -> 0 | H7: 0 | I7: 0
B8: 5 | C8: =الاصناف!B8 -> 0 | D8: =الاصناف!C8 -> 0 | E8: =SUMIF(الاصناف!$B$4:$B$999,C8,الاصناف!$A$4:B1005) -> 0 | F8: =SUMIF(مشتريات!$B$4:$B$9000,$E8,مشتريات!$E$4:$E$5000) -> 0 | G8: =SUMIF(مبيعات!$B$4:$B$9000,$E8,مبيعات!$E$4:$E$5000) -> 0 | H8: 0 | I8: 0
B9: 6 | C9: =الاصناف!B9 -> 0 | D9: =الاصناف!C9 -> 0 | E9: =SUMIF(الاصناف!$B$4:$B$999,C9,الاصناف!$A$4:B1006) -> 0 | F9: =SUMIF(مشتريات!$B$4:$B$9000,$E9,مشتريات!$E$4:$E$5000) -> 0 | G9: =SUMIF(مبيعات!$B$4:$B$9000,$E9,مبيعات!$E$4:$E$5000) -> 0 | H9: 0 | I9: 0
B10: 7 | C10: =الاصناف!B10 -> 0 | D10: =الاصناف!C10 -> 0 | E10: =SUMIF(الاصناف!$B$4:$B$999,C10,الاصناف!$A$4:B1007) -> 0 | F10: =SUMIF(مشتريات!$B$4:$B$9000,$E10,مشتريات!$E$4:$E$5000) -> 0 | G10: =SUMIF(مبيعات!$B$4:$B$9000,$E10,مبيعات!$E$4:$E$5000) -> 0 | H10: 0 | I10: 0
B11: 8 | C11: =الاصناف!B11 -> 0 | D11: =الاصناف!C11 -> 0 | E11: =SUMIF(الاصناف!$B$4:$B$999,C11,الاصناف!$A$4:B1008) -> 0 | F11: =SUMIF(مشتريات!$B$4:$B$9000,$E11,مشتريات!$E$4:$E$5000) -> 0 | G11: =SUMIF(مبيعات!$B$4:$B$9000,$E11,مبيعات!$E$4:$E$5000) -> 0 | H11: 0 | I11: 0
B12: 9 | C12: =الاصناف!B12 -> 0 | D12: =الاصناف!C12 -> 0 | E12: =SUMIF(الاصناف!$B$4:$B$999,C12,الاصناف!$A$4:B1009) -> 0 | F12: =SUMIF(مشتريات!$B$4:$B$9000,$E12,مشتريات!$E$4:$E$5000) -> 0 | G12: =SUMIF(مبيعات!$B$4:$B$9000,$E12,مبيعات!$E$4:$E$5000) -> 0 | H12: 0 | I12: 0
B13: 10 | C13: =الاصناف!B13 -> 0 | D13: =الاصناف!C13 -> 0 | E13: =SUMIF(الاصناف!$B$4:$B$999,C13,الاصناف!$A$4:B1010) -> 0 | F13: =SUMIF(مشتريات!$B$4:$B$9000,$E13,مشتريات!$E$4:$E$5000) -> 0 | G13: =SUMIF(مبيعات!$B$4:$B$9000,$E13,مبيعات!$E$4:$E$5000) -> 0 | H13: 0 | I13: 0
B14: 11 | C14: =الاصناف!B14 -> 0 | D14: =الاصناف!C14 -> 0 | E14: =SUMIF(الاصناف!$B$4:$B$999,C14,الاصناف!$A$4:B1011) -> 0 | F14: =SUMIF(مشتريات!$B$4:$B$9000,$E14,مشتريات!$E$4:$E$5000) -> 0 | G14: =SUMIF(مبيعات!$B$4:$B$9000,$E14,مبيعات!$E$4:$E$5000) -> 0 | H14: 0 | I14: 0
B15: 12 | C15: =الاصناف!B15 -> 0 | D15: =الاصناف!C15 -> 0 | E15: =SUMIF(الاصناف!$B$4:$B$999,C15,الاصناف!$A$4:B1012) -> 0 | F15: =SUMIF(مشتريات!$B$4:$B$9000,$E15,مشتريات!$E$4:$E$5000) -> 0 | G15: =SUMIF(مبيعات!$B$4:$B$9000,$E15,مبيعات!$E$4:$E$5000) -> 0 | H15: 0 | I15: 0
B16: 13 | C16: =الاصناف!B16 -> 0 | D16: =الاصناف!C16 -> 0 | E16: =SUMIF(الاصناف!$B$4:$B$999,C16,الاصناف!$A$4:B1013) -> 0 | F16: =SUMIF(مشتريات!$B$4:$B$9000,$E16,مشتريات!$E$4:$E$5000) -> 0 | G16: =SUMIF(مبيعات!$B$4:$B$9000,$E16,مبيعات!$E$4:$E$5000) -> 0 | H16: 0 | I16: 0
B17: 14 | C17: =الاصناف!B17 -> 0 | D17: =الاصناف!C17 -> 0 | E17: =SUMIF(الاصناف!$B$4:$B$999,C17,الاصناف!$A$4:B1014) -> 0 | F17: =SUMIF(مشتريات!$B$4:$B$9000,$E17,مشتريات!$E$4:$E$5000) -> 0 | G17: =SUMIF(مبيعات!$B$4:$B$9000,$E17,مبيعات!$E$4:$E$5000) -> 0 | H17: 0 | I17: 0
B18: 15 | C18: =الاصناف!B18 -> 0 | D18: =الاصناف!C18 -> 0 | E18: =SUMIF(الاصناف!$B$4:$B$999,C18,الاصناف!$A$4:B1015) -> 0 | F18: =SUMIF(مشتريات!$B$4:$B$9000,$E18,مشتريات!$E$4:$E$5000) -> 0 | G18: =SUMIF(مبيعات!$B$4:$B$9000,$E18,مبيعات!$E$4:$E$5000) -> 0 | H18: 0 | I18: 0
B19: 16 | C19: =الاصناف!B19 -> 0 | D19: =الاصناف!C19 -> 0 | E19: =SUMIF(الاصناف!$B$4:$B$999,C19,الاصناف!$A$4:B1016) -> 0 | F19: =SUMIF(مشتريات!$B$4:$B$9000,$E19,مشتريات!$E$4:$E$5000) -> 0 | G19: =SUMIF(مبيعات!$B$4:$B$9000,$E19,مبيعات!$E$4:$E$5000) -> 0 | H19: 0 | I19: 0
B20: 17 | C20: =الاصناف!B20 -> 0 | D20: =الاصناف!C20 -> 0 | E20: =SUMIF(الاصناف!$B$4:$B$999,C20,الاصناف!$A$4:B1017) -> 0 | F20: =SUMIF(مشتريات!$B$4:$B$9000,$E20,مشتريات!$E$4:$E$5000) -> 0 | G20: =SUMIF(مبيعات!$B$4:$B$9000,$E20,مبيعات!$E$4:$E$5000) -> 0 | H20: 0 | I20: 0
B21: 18 | C21: =الاصناف!B21 -> 0 | D21: =الاصناف!C21 -> 0 | E21: =SUMIF(الاصناف!$B$4:$B$999,C21,الاصناف!$A$4:B1018) -> 0 | F21: =SUMIF(مشتريات!$B$4:$B$9000,$E21,مشتريات!$E$4:$E$5000) -> 0 | G21: =SUMIF(مبيعات!$B$4:$B$9000,$E21,مبيعات!$E$4:$E$5000) -> 0 | H21: 0 | I21: 0
B22: 19 | C22: =الاصناف!B22 -> 0 | D22: =الاصناف!C22 -> 0 | E22: =SUMIF(الاصناف!$B$4:$B$999,C22,الاصناف!$A$4:B1019) -> 0 | F22: =SUMIF(مشتريات!$B$4:$B$9000,$E22,مشتريات!$E$4:$E$5000) -> 0 | G22: =SUMIF(مبيعات!$B$4:$B$9000,$E22,مبيعات!$E$4:$E$5000) -> 0 | H22: 0 | I22: 0
B23: 20 | C23: =الاصناف!B23 -> 0 | D23: =الاصناف!C23 -> 0 | E23: =SUMIF(الاصناف!$B$4:$B$999,C23,الاصناف!A$4:$A1020) -> 0 | F23: =SUMIF(مشتريات!$B$4:$B$9000,$E23,مشتريات!$E$4:$E$5000) -> 0 | G23: =SUMIF(مبيعات!$B$4:$B$9000,$E23,مبيعات!$E$4:$E$5000) -> 0 | H23: 0 | I23: 0
B24: 21 | C24: =الاصناف!B24 -> 0 | D24: =الاصناف!C24 -> 0 | E24: =SUMIF(الاصناف!$B$4:$B$999,C24,الاصناف!$A$4:B1021) -> 0 | F24: =SUMIF(مشتريات!$B$4:$B$9000,$E24,مشتريات!$E$4:$E$5000) -> 0 | G24: =SUMIF(مبيعات!$B$4:$B$9000,$E24,مبيعات!$E$4:$E$5000) -> 0 | H24: 0 | I24: 0
B25: 22 | C25: =الاصناف!B25 -> 0 | D25: =الاصناف!C25 -> 0 | E25: =SUMIF(الاصناف!$B$4:$B$999,C25,الاصناف!$A$4:B1022) -> 0 | F25: =SUMIF(مشتريات!$B$4:$B$9000,$E25,مشتريات!$E$4:$E$5000) -> 0 | G25: =SUMIF(مبيعات!$B$4:$B$9000,$E25,مبيعات!$E$4:$E$5000) -> 0 | H25: 0 | I25: 0
B26: 23 | C26: =الاصناف!B26 -> 0 | D26: =الاصناف!C26 -> 0 | E26: =SUMIF(الاصناف!$B$4:$B$999,C26,الاصناف!$A$4:B1023) -> 0 | F26: =SUMIF(مشتريات!$B$4:$B$9000,$E26,مشتريات!$E$4:$E$5000) -> 0 | G26: =SUMIF(مبيعات!$B$4:$B$9000,$E26,مبيعات!$E$4:$E$5000) -> 0 | H26: 0 | I26: 0
B27: 24 | C27: =الاصناف!B27 -> 0 | D27: =الاصناف!C27 -> 0 | E27: =SUMIF(الاصناف!$B$4:$B$999,C27,الاصناف!$A$4:B1024) -> 0 | F27: =SUMIF(مشتريات!$B$4:$B$9000,$E27,مشتريات!$E$4:$E$5000) -> 0 | G27: =SUMIF(مبيعات!$B$4:$B$9000,$E27,مبيعات!$E$4:$E$5000) -> 0 | H27: 0 | I27: 0
B28: 25 | C28: =الاصناف!B28 -> 0 | D28: =الاصناف!C28 -> 0 | E28: =SUMIF(الاصناف!$B$4:$B$999,C28,الاصناف!$A$4:B1025) -> 0 | F28: =SUMIF(مشتريات!$B$4:$B$9000,$E28,مشتريات!$E$4:$E$5000) -> 0 | G28: =SUMIF(مبيعات!$B$4:$B$9000,$E28,مبيعات!$E$4:$E$5000) -> 0 | H28: 0 | I28: 0
B29: 26 | C29: =الاصناف!B29 -> 0 | D29: =الاصناف!C29 -> 0 | E29: =SUMIF(الاصناف!$B$4:$B$999,C29,الاصناف!$A$4:B1026) -> 0 | F29: =SUMIF(مشتريات!$B$4:$B$9000,$E29,مشتريات!$E$4:$E$5000) -> 0 | G29: =SUMIF(مبيعات!$B$4:$B$9000,$E29,مبيعات!$E$4:$E$5000) -> 0 | H29: 0 | I29: 0
B30: 27 | C30: =الاصناف!B30 -> 0 | D30: =الاصناف!C30 -> 0 | E30: =SUMIF(الاصناف!$B$4:$B$999,C30,الاصناف!$A$4:B1027) -> 0 | F30: =SUMIF(مشتريات!$B$4:$B$9000,$E30,مشتريات!$E$4:$E$5000) -> 0 | G30: =SUMIF(مبيعات!$B$4:$B$9000,$E30,مبيعات!$E$4:$E$5000) -> 0 | H30: 0 | I30: 0
B31: 28 | C31: =الاصناف!B31 -> 0 | D31: =الاصناف!C31 -> 0 | E31: =SUMIF(الاصناف!$B$4:$B$999,C31,الاصناف!$A$4:B1028) -> 0 | F31: =SUMIF(مشتريات!$B$4:$B$9000,$E31,مشتريات!$E$4:$E$5000) -> 0 | G31: =SUMIF(مبيعات!$B$4:$B$9000,$E31,مبيعات!$E$4:$E$5000) -> 0 | H31: 0 | I31: 0
B32: 29 | C32: =الاصناف!B32 -> 0 | D32: =الاصناف!C32 -> 0 | E32: =SUMIF(الاصناف!$B$4:$B$999,C32,الاصناف!$A$4:B1029) -> 0 | F32: =SUMIF(مشتريات!$B$4:$B$9000,$E32,مشتريات!$E$4:$E$5000) -> 0 | G32: =SUMIF(مبيعات!$B$4:$B$9000,$E32,مبيعات!$E$4:$E$5000) -> 0 | H32: 0 | I32: 0
B33: 30 | C33: =الاصناف!B33 -> 0 | D33: =الاصناف!C33 -> 0 | E33: =SUMIF(الاصناف!$B$4:$B$999,C33,الاصناف!$A$4:B1030) -> 0 | F33: =SUMIF(مشتريات!$B$4:$B$9000,$E33,مشتريات!$E$4:$E$5000) -> 0 | G33: =SUMIF(مبيعات!$B$4:$B$9000,$E33,مبيعات!$E$4:$E$5000) -> 0 | H33: 0 | I33: 0
B34: 31 | C34: =الاصناف!B34 -> 0 | D34: =الاصناف!C34 -> 0 | E34: =SUMIF(الاصناف!$B$4:$B$999,C34,الاصناف!$A$4:B1031) -> 0 | F34: =SUMIF(مشتريات!$B$4:$B$9000,$E34,مشتريات!$E$4:$E$5000) -> 0 | G34: =SUMIF(مبيعات!$B$4:$B$9000,$E34,مبيعات!$E$4:$E$5000) -> 0 | H34: 0 | I34: 0
B35: 32 | C35: =الاصناف!B35 -> 0 | D35: =الاصناف!C35 -> 0 | E35: =SUMIF(الاصناف!$B$4:$B$999,C35,الاصناف!$A$4:B1032) -> 0 | F35: =SUMIF(مشتريات!$B$4:$B$9000,$E35,مشتريات!$E$4:$E$5000) -> 0 | G35: =SUMIF(مبيعات!$B$4:$B$9000,$E35,مبيعات!$E$4:$E$5000) -> 0 | H35: 0 | I35: 0
B36: 33 | C36: =الاصناف!B36 -> 0 | D36: =الاصناف!C36 -> 0 | E36: =SUMIF(الاصناف!$B$4:$B$999,C36,الاصناف!$A$4:B1033) -> 0 | F36: =SUMIF(مشتريات!$B$4:$B$9000,$E36,مشتريات!$E$4:$E$5000) -> 0 | G36: =SUMIF(مبيعات!$B$4:$B$9000,$E36,مبيعات!$E$4:$E$5000) -> 0 | H36: 0 | I36: 0
B37: =IF(C37<>"",B36+1,"") -> 34 | C37: =الاصناف!B37 -> 0 | D37: =الاصناف!C37 -> 0 | E37: =SUMIF(الاصناف!$B$4:$B$999,C37,الاصناف!$A$4:B1034) -> 0 | F37: =SUMIF(مشتريات!$B$4:$B$9000,$E37,مشتريات!$E$4:$E$5000) -> 0 | G37: =SUMIF(مبيعات!$B$4:$B$9000,$E37,مبيعات!$E$4:$E$5000) -> 0 | H37: 0 | I37: 0
B38: 35 | C38: =الاصناف!B38 -> 0 | D38: =الاصناف!C38 -> 0 | E38: =SUMIF(الاصناف!$B$4:$B$999,C38,الاصناف!$A$4:B1035) -> 0 | F38: =SUMIF(مشتريات!$B$4:$B$9000,$E38,مشتريات!$E$4:$E$5000) -> 0 | G38: =SUMIF(مبيعات!$B$4:$B$9000,$E38,مبيعات!$E$4:$E$5000) -> 0 | H38: 0 | I38: 0
B39: 36 | C39: =الاصناف!B39 -> 0 | D39: =الاصناف!C39 -> 0 | E39: =SUMIF(الاصناف!$B$4:$B$999,C39,الاصناف!$A$4:B1036) -> 0 | F39: =SUMIF(مشتريات!$B$4:$B$9000,$E39,مشتريات!$E$4:$E$5000) -> 0 | G39: =SUMIF(مبيعات!$B$4:$B$9000,$E39,مبيعات!$E$4:$E$5000) -> 0 | H39: 0 | I39: 0
B40: 37 | C40: =الاصناف!B40 -> 0 | D40: =الاصناف!C40 -> 0 | E40: =SUMIF(الاصناف!$B$4:$B$999,C40,الاصناف!$A$4:B1037) -> 0 | F40: =SUMIF(مشتريات!$B$4:$B$9000,$E40,مشتريات!$E$4:$E$5000) -> 0 | G40: =SUMIF(مبيعات!$B$4:$B$9000,$E40,مبيعات!$E$4:$E$5000) -> 0 | H40: 0 | I40: 0
B41: 38 | C41: =الاصناف!B41 -> 0 | D41: =الاصناف!C41 -> 0 | E41: =SUMIF(الاصناف!$B$4:$B$999,C41,الاصناف!$A$4:B1038) -> 0 | F41: =SUMIF(مشتريات!$B$4:$B$9000,$E41,مشتريات!$E$4:$E$5000) -> 0 | G41: =SUMIF(مبيعات!$B$4:$B$9000,$E41,مبيعات!$E$4:$E$5000) -> 0 | H41: 0 | I41: 0
B42: 39 | C42: =الاصناف!B42 -> 0 | D42: =الاصناف!C42 -> 0 | E42: =SUMIF(الاصناف!$B$4:$B$999,C42,الاصناف!A$4:$A1039) -> 0 | F42: =SUMIF(مشتريات!$B$4:$B$9000,$E42,مشتريات!$E$4:$E$5000) -> 0 | G42: =SUMIF(مبيعات!$B$4:$B$9000,$E42,مبيعات!$E$4:$E$5000) -> 0 | H42: 0 | I42: 0
B43: 40 | C43: =الاصناف!B43 -> 0 | D43: =الاصناف!C43 -> 0 | E43: =SUMIF(الاصناف!$B$4:$B$999,C43,الاصناف!$A$4:B1040) -> 0 | F43: =SUMIF(مشتريات!$B$4:$B$9000,$E43,مشتريات!$E$4:$E$5000) -> 0 | G43: =SUMIF(مبيعات!$B$4:$B$9000,$E43,مبيعات!$E$4:$E$5000) -> 0 | H43: 0 | I43: 0
B44: 41 | C44: =الاصناف!B44 -> 0 | D44: =الاصناف!C44 -> 0 | E44: =SUMIF(الاصناف!$B$4:$B$999,C44,الاصناف!$A$4:B1041) -> 0 | F44: =SUMIF(مشتريات!$B$4:$B$9000,$E44,مشتريات!$E$4:$E$5000) -> 0 | G44: =SUMIF(مبيعات!$B$4:$B$9000,$E44,مبيعات!$E$4:$E$5000) -> 0 | H44: 0 | I44: 0
B45: 42 | C45: =الاصناف!B45 -> 0 | D45: =الاصناف!C45 -> 0 | E45: =SUMIF(الاصناف!$B$4:$B$999,C45,الاصناف!$A$4:B1042) -> 0 | F45: =SUMIF(مشتريات!$B$4:$B$9000,$E45,مشتريات!$E$4:$E$5000) -> 0 | G45: =SUMIF(مبيعات!$B$4:$B$9000,$E45,مبيعات!$E$4:$E$5000) -> 0 | H45: 0 | I45: 0
B46: 43 | C46: =الاصناف!B46 -> 0 | D46: =الاصناف!C46 -> 0 | E46: =SUMIF(الاصناف!$B$4:$B$999,C46,الاصناف!$A$4:B1043) -> 0 | F46: =SUMIF(مشتريات!$B$4:$B$9000,$E46,مشتريات!$E$4:$E$5000) -> 0 | G46: =SUMIF(مبيعات!$B$4:$B$9000,$E46,مبيعات!$E$4:$E$5000) -> 0 | H46: 0 | I46: 0
B47: 44 | C47: =الاصناف!B47 -> 0 | D47: =الاصناف!C47 -> 0 | E47: =SUMIF(الاصناف!$B$4:$B$999,C47,الاصناف!$A$4:B1044) -> 0 | F47: =SUMIF(مشتريات!$B$4:$B$9000,$E47,مشتريات!$E$4:$E$5000) -> 0 | G47: =SUMIF(مبيعات!$B$4:$B$9000,$E47,مبيعات!$E$4:$E$5000) -> 0 | H47: 0 | I47: 0
B48: 45 | C48: =الاصناف!B48 -> 0 | D48: =الاصناف!C48 -> 0 | E48: =SUMIF(الاصناف!$B$4:$B$999,C48,الاصناف!$A$4:B1045) -> 0 | F48: =SUMIF(مشتريات!$B$4:$B$9000,$E48,مشتريات!$E$4:$E$5000) -> 0 | G48: =SUMIF(مبيعات!$B$4:$B$9000,$E48,مبيعات!$E$4:$E$5000) -> 0 | H48: 0 | I48: 0
B49: 46 | C49: =الاصناف!B49 -> 0 | D49: =الاصناف!C49 -> 0 | E49: =SUMIF(الاصناف!$B$4:$B$999,C49,الاصناف!$A$4:B1046) -> 0 | F49: =SUMIF(مشتريات!$B$4:$B$9000,$E49,مشتريات!$E$4:$E$5000) -> 0 | G49: =SUMIF(مبيعات!$B$4:$B$9000,$E49,مبيعات!$E$4:$E$5000) -> 0 | H49: 0 | I49: 0
B50: 47 | C50: =الاصناف!B50 -> 0 | D50: =الاصناف!C50 -> 0 | E50: =SUMIF(الاصناف!$B$4:$B$999,C50,الاصناف!$A$4:B1047) -> 0 | F50: =SUMIF(مشتريات!$B$4:$B$9000,$E50,مشتريات!$E$4:$E$5000) -> 0 | G50: =SUMIF(مبيعات!$B$4:$B$9000,$E50,مبيعات!$E$4:$E$5000) -> 0 | H50: 0 | I50: 0
B51: 48 | C51: =الاصناف!B51 -> 0 | D51: =الاصناف!C51 -> 0 | E51: =SUMIF(الاصناف!$B$4:$B$999,C51,الاصناف!$A$4:B1048) -> 0 | F51: =SUMIF(مشتريات!$B$4:$B$9000,$E51,مشتريات!$E$4:$E$5000) -> 0 | G51: =SUMIF(مبيعات!$B$4:$B$9000,$E51,مبيعات!$E$4:$E$5000) -> 0 | H51: 0 | I51: 0
B52: 49 | C52: =الاصناف!B52 -> 0 | D52: =الاصناف!C52 -> 0 | E52: =SUMIF(الاصناف!$B$4:$B$999,C52,الاصناف!$A$4:B1049) -> 0 | F52: =SUMIF(مشتريات!$B$4:$B$9000,$E52,مشتريات!$E$4:$E$5000) -> 0 | G52: =SUMIF(مبيعات!$B$4:$B$9000,$E52,مبيعات!$E$4:$E$5000) -> 0 | H52: 0 | I52: 0
B53: 50 | C53: =الاصناف!B53 -> 0 | D53: =الاصناف!C53 -> 0 | E53: =SUMIF(الاصناف!$B$4:$B$999,C53,الاصناف!$A$4:B1050) -> 0 | F53: =SUMIF(مشتريات!$B$4:$B$9000,$E53,مشتريات!$E$4:$E$5000) -> 0 | G53: =SUMIF(مبيعات!$B$4:$B$9000,$E53,مبيعات!$E$4:$E$5000) -> 0 | H53: 0 | I53: 0
B54: 51 | C54: =الاصناف!B54 -> 0 | D54: =الاصناف!C54 -> 0 | E54: =SUMIF(الاصناف!$B$4:$B$999,C54,الاصناف!$A$4:B1051) -> 0 | F54: =SUMIF(مشتريات!$B$4:$B$9000,$E54,مشتريات!$E$4:$E$5000) -> 0 | G54: =SUMIF(مبيعات!$B$4:$B$9000,$E54,مبيعات!$E$4:$E$5000) -> 0 | H54: 0 | I54: 0
B55: 52 | C55: =الاصناف!B55 -> 0 | D55: =الاصناف!C55 -> 0 | E55: =SUMIF(الاصناف!$B$4:$B$999,C55,الاصناف!$A$4:B1052) -> 0 | F55: =SUMIF(مشتريات!$B$4:$B$9000,$E55,مشتريات!$E$4:$E$5000) -> 0 | G55: =SUMIF(مبيعات!$B$4:$B$9000,$E55,مبيعات!$E$4:$E$5000) -> 0 | H55: 0 | I55: 0
B56: 53 | C56: =الاصناف!B56 -> 0 | D56: =الاصناف!C56 -> 0 | E56: =SUMIF(الاصناف!$B$4:$B$999,C56,الاصناف!$A$4:B1053) -> 0 | F56: =SUMIF(مشتريات!$B$4:$B$9000,$E56,مشتريات!$E$4:$E$5000) -> 0 | G56: =SUMIF(مبيعات!$B$4:$B$9000,$E56,مبيعات!$E$4:$E$5000) -> 0 | H56: 0 | I56: 0
B57: 54 | C57: =الاصناف!B57 -> 0 | D57: =الاصناف!C57 -> 0 | E57: =SUMIF(الاصناف!$B$4:$B$999,C57,الاصناف!$A$4:B1054) -> 0 | F57: =SUMIF(مشتريات!$B$4:$B$9000,$E57,مشتريات!$E$4:$E$5000) -> 0 | G57: =SUMIF(مبيعات!$B$4:$B$9000,$E57,مبيعات!$E$4:$E$5000) -> 0 | H57: 0 | I57: 0
B58: 55 | C58: =الاصناف!B58 -> 0 | D58: =الاصناف!C58 -> 0 | E58: =SUMIF(الاصناف!$B$4:$B$999,C58,الاصناف!$A$4:B1055) -> 0 | F58: =SUMIF(مشتريات!$B$4:$B$9000,$E58,مشتريات!$E$4:$E$5000) -> 0 | G58: =SUMIF(مبيعات!$B$4:$B$9000,$E58,مبيعات!$E$4:$E$5000) -> 0 | H58: 0 | I58: 0
B59: 56 | C59: =الاصناف!B59 -> 0 | D59: =الاصناف!C59 -> 0 | E59: =SUMIF(الاصناف!$B$4:$B$999,C59,الاصناف!$A$4:B1056) -> 0 | F59: =SUMIF(مشتريات!$B$4:$B$9000,$E59,مشتريات!$E$4:$E$5000) -> 0 | G59: =SUMIF(مبيعات!$B$4:$B$9000,$E59,مبيعات!$E$4:$E$5000) -> 0 | H59: 0 | I59: 0
B60: 57 | C60: =الاصناف!B60 -> 0 | D60: =الاصناف!C60 -> 0 | E60: =SUMIF(الاصناف!$B$4:$B$999,C60,الاصناف!$A$4:B1057) -> 0 | F60: =SUMIF(مشتريات!$B$4:$B$9000,$E60,مشتريات!$E$4:$E$5000) -> 0 | G60: =SUMIF(مبيعات!$B$4:$B$9000,$E60,مبيعات!$E$4:$E$5000) -> 0 | H60: 0 | I60: 0
B61: 58 | C61: =الاصناف!B61 -> 0 | D61: =الاصناف!C61 -> 0 | E61: =SUMIF(الاصناف!$B$4:$B$999,C61,الاصناف!A$4:$A1058) -> 0 | F61: =SUMIF(مشتريات!$B$4:$B$9000,$E61,مشتريات!$E$4:$E$5000) -> 0 | G61: =SUMIF(مبيعات!$B$4:$B$9000,$E61,مبيعات!$E$4:$E$5000) -> 0 | H61: 0 | I61: 0
B62: 59 | C62: =الاصناف!B62 -> 0 | D62: =الاصناف!C62 -> 0 | E62: =SUMIF(الاصناف!$B$4:$B$999,C62,الاصناف!$A$4:B1059) -> 0 | F62: =SUMIF(مشتريات!$B$4:$B$9000,$E62,مشتريات!$E$4:$E$5000) -> 0 | G62: =SUMIF(مبيعات!$B$4:$B$9000,$E62,مبيعات!$E$4:$E$5000) -> 0 | H62: 0 | I62: 0
B63: 60 | C63: =الاصناف!B63 -> 0 | D63: =الاصناف!C63 -> 0 | E63: =SUMIF(الاصناف!$B$4:$B$999,C63,الاصناف!$A$4:B1060) -> 0 | F63: =SUMIF(مشتريات!$B$4:$B$9000,$E63,مشتريات!$E$4:$E$5000) -> 0 | G63: =SUMIF(مبيعات!$B$4:$B$9000,$E63,مبيعات!$E$4:$E$5000) -> 0 | H63: 0 | I63: 0
B64: 61 | C64: =الاصناف!B64 -> 0 | D64: =الاصناف!C64 -> 0 | E64: =SUMIF(الاصناف!$B$4:$B$999,C64,الاصناف!$A$4:B1061) -> 0 | F64: =SUMIF(مشتريات!$B$4:$B$9000,$E64,مشتريات!$E$4:$E$5000) -> 0 | G64: =SUMIF(مبيعات!$B$4:$B$9000,$E64,مبيعات!$E$4:$E$5000) -> 0 | H64: 0 | I64: 0
B65: 62 | C65: =الاصناف!B65 -> 0 | D65: =الاصناف!C65 -> 0 | E65: =SUMIF(الاصناف!$B$4:$B$999,C65,الاصناف!$A$4:B1062) -> 0 | F65: =SUMIF(مشتريات!$B$4:$B$9000,$E65,مشتريات!$E$4:$E$5000) -> 0 | G65: =SUMIF(مبيعات!$B$4:$B$9000,$E65,مبيعات!$E$4:$E$5000) -> 0 | H65: 0 | I65: 0
B66: 63 | C66: =الاصناف!B66 -> 0 | D66: =الاصناف!C66 -> 0 | E66: =SUMIF(الاصناف!$B$4:$B$999,C66,الاصناف!$A$4:B1063) -> 0 | F66: =SUMIF(مشتريات!$B$4:$B$9000,$E66,مشتريات!$E$4:$E$5000) -> 0 | G66: =SUMIF(مبيعات!$B$4:$B$9000,$E66,مبيعات!$E$4:$E$5000) -> 0 | H66: 0 | I66: 0
B67: 64 | C67: =الاصناف!B67 -> 0 | D67: =الاصناف!C67 -> 0 | E67: =SUMIF(الاصناف!$B$4:$B$999,C67,الاصناف!$A$4:B1064) -> 0 | F67: =SUMIF(مشتريات!$B$4:$B$9000,$E67,مشتريات!$E$4:$E$5000) -> 0 | G67: =SUMIF(مبيعات!$B$4:$B$9000,$E67,مبيعات!$E$4:$E$5000) -> 0 | H67: 0 | I67: 0
B68: 65 | C68: =الاصناف!B68 -> 0 | D68: =الاصناف!C68 -> 0 | E68: =SUMIF(الاصناف!$B$4:$B$999,C68,الاصناف!$A$4:B1065) -> 0 | F68: =SUMIF(مشتريات!$B$4:$B$9000,$E68,مشتريات!$E$4:$E$5000) -> 0 | G68: =SUMIF(مبيعات!$B$4:$B$9000,$E68,مبيعات!$E$4:$E$5000) -> 0 | H68: =F68-G68 -> 0 | I68: 0
B69: =IF(C69<>"",B68+1,"") -> 66 | C69: =الاصناف!B69 -> 0 | D69: =الاصناف!C69 -> 0 | E69: =SUMIF(الاصناف!$B$4:$B$999,C69,الاصناف!$A$4:B1066) -> 0 | F69: =SUMIF(مشتريات!$B$4:$B$9000,$E69,مشتريات!$E$4:$E$5000) -> 0 | G69: =SUMIF(مبيعات!$B$4:$B$9000,$E69,مبيعات!$E$4:$E$5000) -> 0 | H69: 0 | I69: =H69/12 -> 0
B70: 67 | C70: =الاصناف!B70 -> 0 | D70: =الاصناف!C70 -> 0 | E70: =SUMIF(الاصناف!$B$4:$B$999,C70,الاصناف!$A$4:B1067) -> 0 | F70: =SUMIF(مشتريات!$B$4:$B$9000,$E70,مشتريات!$E$4:$E$5000) -> 0 | G70: =SUMIF(مبيعات!$B$4:$B$9000,$E70,مبيعات!$E$4:$E$5000) -> 0 | H70: 0 | I70: 0
B71: 68 | C71: =الاصناف!B71 -> 0 | D71: =الاصناف!C71 -> 0 | E71: =SUMIF(الاصناف!$B$4:$B$999,C71,الاصناف!$A$4:B1068) -> 0 | F71: =SUMIF(مشتريات!$B$4:$B$9000,$E71,مشتريات!$E$4:$E$5000) -> 0 | G71: =SUMIF(مبيعات!$B$4:$B$9000,$E71,مبيعات!$E$4:$E$5000) -> 0 | H71: 0 | I71: 0
B72: 69 | C72: =الاصناف!B72 -> 0 | D72: =الاصناف!C72 -> 0 | E72: =SUMIF(الاصناف!$B$4:$B$999,C72,الاصناف!$A$4:B1069) -> 0 | F72: =SUMIF(مشتريات!$B$4:$B$9000,$E72,مشتريات!$E$4:$E$5000) -> 0 | G72: =SUMIF(مبيعات!$B$4:$B$9000,$E72,مبيعات!$E$4:$E$5000) -> 0 | H72: 0 | I72: 0
B73: 70 | C73: =الاصناف!B73 -> 0 | D73: =الاصناف!C73 -> 0 | E73: =SUMIF(الاصناف!$B$4:$B$999,C73,الاصناف!$A$4:B1070) -> 0 | F73: =SUMIF(مشتريات!$B$4:$B$9000,$E73,مشتريات!$E$4:$E$5000) -> 0 | G73: =SUMIF(مبيعات!$B$4:$B$9000,$E73,مبيعات!$E$4:$E$5000) -> 0 | H73: 0 | I73: 0
B74: 71 | C74: =الاصناف!B74 -> 0 | D74: =الاصناف!C74 -> 0 | E74: =SUMIF(الاصناف!$B$4:$B$999,C74,الاصناف!$A$4:B1071) -> 0 | F74: =SUMIF(مشتريات!$B$4:$B$9000,$E74,مشتريات!$E$4:$E$5000) -> 0 | G74: =SUMIF(مبيعات!$B$4:$B$9000,$E74,مبيعات!$E$4:$E$5000) -> 0 | H74: 0 | I74: 0
B75: 72 | C75: =الاصناف!B75 -> 0 | D75: =الاصناف!C75 -> 0 | E75: =SUMIF(الاصناف!$B$4:$B$999,C75,الاصناف!$A$4:B1072) -> 0 | F75: =SUMIF(مشتريات!$B$4:$B$9000,$E75,مشتريات!$E$4:$E$5000) -> 0 | G75: =SUMIF(مبيعات!$B$4:$B$9000,$E75,مبيعات!$E$4:$E$5000) -> 0 | H75: 0 | I75: 0
B76: 73 | C76: =الاصناف!B76 -> 0 | D76: =الاصناف!C76 -> 0 | E76: =SUMIF(الاصناف!$B$4:$B$999,C76,الاصناف!$A$4:B1073) -> 0 | F76: =SUMIF(مشتريات!$B$4:$B$9000,$E76,مشتريات!$E$4:$E$5000) -> 0 | G76: =SUMIF(مبيعات!$B$4:$B$9000,$E76,مبيعات!$E$4:$E$5000) -> 0 | H76: 0 | I76: 0
B77: 74 | C77: =الاصناف!B77 -> 0 | D77: =الاصناف!C77 -> 0 | E77: =SUMIF(الاصناف!$B$4:$B$999,C77,الاصناف!$A$4:B1074) -> 0 | F77: =SUMIF(مشتريات!$B$4:$B$9000,$E77,مشتريات!$E$4:$E$5000) -> 0 | G77: =SUMIF(مبيعات!$B$4:$B$9000,$E77,مبيعات!$E$4:$E$5000) -> 0 | H77: 0 | I77: 0
B78: 75 | C78: =الاصناف!B78 -> 0 | D78: =الاصناف!C78 -> 0 | E78: =SUMIF(الاصناف!$B$4:$B$999,C78,الاصناف!$A$4:B1075) -> 0 | F78: =SUMIF(مشتريات!$B$4:$B$9000,$E78,مشتريات!$E$4:$E$5000) -> 0 | G78: =SUMIF(مبيعات!$B$4:$B$9000,$E78,مبيعات!$E$4:$E$5000) -> 0 | H78: 0 | I78: 0
B79: 76 | C79: =الاصناف!B79 -> 0 | D79: =الاصناف!C79 -> 0 | E79: =SUMIF(الاصناف!$B$4:$B$999,C79,الاصناف!$A$4:B1076) -> 0 | F79: =SUMIF(مشتريات!$B$4:$B$9000,$E79,مشتريات!$E$4:$E$5000) -> 0 | G79: =SUMIF(مبيعات!$B$4:$B$9000,$E79,مبيعات!$E$4:$E$5000) -> 0 | H79: 0 | I79: 0
B80: 77 | C80: =الاصناف!B80 -> 0 | D80: =الاصناف!C80 -> 0 | E80: =SUMIF(الاصناف!$B$4:$B$999,C80,الاصناف!A$4:$A1077) -> 0 | F80: =SUMIF(مشتريات!$B$4:$B$9000,$E80,مشتريات!$E$4:$E$5000) -> 0 | G80: =SUMIF(مبيعات!$B$4:$B$9000,$E80,مبيعات!$E$4:$E$5000) -> 0 | H80: 0 | I80: 0
B81: 78 | C81: =الاصناف!B81 -> 0 | D81: =الاصناف!C81 -> 0 | E81: =SUMIF(الاصناف!$B$4:$B$999,C81,الاصناف!$A$4:B1078) -> 0 | F81: =SUMIF(مشتريات!$B$4:$B$9000,$E81,مشتريات!$E$4:$E$5000) -> 0 | G81: =SUMIF(مبيعات!$B$4:$B$9000,$E81,مبيعات!$E$4:$E$5000) -> 0 | H81: 0 | I81: 0
B82: 79 | C82: =الاصناف!B82 -> 0 | D82: =الاصناف!C82 -> 0 | E82: =SUMIF(الاصناف!$B$4:$B$999,C82,الاصناف!$A$4:B1079) -> 0 | F82: =SUMIF(مشتريات!$B$4:$B$9000,$E82,مشتريات!$E$4:$E$5000) -> 0 | G82: =SUMIF(مبيعات!$B$4:$B$9000,$E82,مبيعات!$E$4:$E$5000) -> 0 | H82: 0 | I82: 0
B83: 80 | C83: =الاصناف!B83 -> 0 | D83: =الاصناف!C83 -> 0 | E83: =SUMIF(الاصناف!$B$4:$B$999,C83,الاصناف!$A$4:B1080) -> 0 | F83: =SUMIF(مشتريات!$B$4:$B$9000,$E83,مشتريات!$E$4:$E$5000) -> 0 | G83: =SUMIF(مبيعات!$B$4:$B$9000,$E83,مبيعات!$E$4:$E$5000) -> 0 | H83: 0 | I83: 0
B84: 81 | C84: =الاصناف!B84 -> 0 | D84: =الاصناف!C84 -> 0 | E84: =SUMIF(الاصناف!$B$4:$B$999,C84,الاصناف!$A$4:B1081) -> 0 | F84: =SUMIF(مشتريات!$B$4:$B$9000,$E84,مشتريات!$E$4:$E$5000) -> 0 | G84: =SUMIF(مبيعات!$B$4:$B$9000,$E84,مبيعات!$E$4:$E$5000) -> 0 | H84: 0 | I84: 0
B85: 82 | C85: =الاصناف!B85 -> 0 | D85: =الاصناف!C85 -> 0 | E85: =SUMIF(الاصناف!$B$4:$B$999,C85,الاصناف!$A$4:B1082) -> 0 | F85: =SUMIF(مشتريات!$B$4:$B$9000,$E85,مشتريات!$E$4:$E$5000) -> 0 | G85: =SUMIF(مبيعات!$B$4:$B$9000,$E85,مبيعات!$E$4:$E$5000) -> 0 | H85: 0 | I85: 0
B86: 83 | C86: =الاصناف!B86 -> 0 | D86: =الاصناف!C86 -> 0 | E86: =SUMIF(الاصناف!$B$4:$B$999,C86,الاصناف!$A$4:B1083) -> 0 | F86: =SUMIF(مشتريات!$B$4:$B$9000,$E86,مشتريات!$E$4:$E$5000) -> 0 | G86: =SUMIF(مبيعات!$B$4:$B$9000,$E86,مبيعات!$E$4:$E$5000) -> 0 | H86: 0 | I86: 0
B87: 84 | C87: =الاصناف!B87 -> 0 | D87: =الاصناف!C87 -> 0 | E87: =SUMIF(الاصناف!$B$4:$B$999,C87,الاصناف!$A$4:B1084) -> 0 | F87: =SUMIF(مشتريات!$B$4:$B$9000,$E87,مشتريات!$E$4:$E$5000) -> 0 | G87: =SUMIF(مبيعات!$B$4:$B$9000,$E87,مبيعات!$E$4:$E$5000) -> 0 | H87: 0 | I87: 0
B88: 85 | C88: =الاصناف!B88 -> 0 | D88: =الاصناف!C88 -> 0 | E88: =SUMIF(الاصناف!$B$4:$B$999,C88,الاصناف!$A$4:B1085) -> 0 | F88: =SUMIF(مشتريات!$B$4:$B$9000,$E88,مشتريات!$E$4:$E$5000) -> 0 | G88: =SUMIF(مبيعات!$B$4:$B$9000,$E88,مبيعات!$E$4:$E$5000) -> 0 | H88: 0 | I88: 0
B89: 86 | C89: =الاصناف!B89 -> 0 | D89: =الاصناف!C89 -> 0 | E89: =SUMIF(الاصناف!$B$4:$B$999,C89,الاصناف!$A$4:B1086) -> 0 | F89: =SUMIF(مشتريات!$B$4:$B$9000,$E89,مشتريات!$E$4:$E$5000) -> 0 | G89: =SUMIF(مبيعات!$B$4:$B$9000,$E89,مبيعات!$E$4:$E$5000) -> 0 | H89: 0 | I89: 0
B90: 87 | C90: =الاصناف!B90 -> 0 | D90: =الاصناف!C90 -> 0 | E90: =SUMIF(الاصناف!$B$4:$B$999,C90,الاصناف!$A$4:B1087) -> 0 | F90: =SUMIF(مشتريات!$B$4:$B$9000,$E90,مشتريات!$E$4:$E$5000) -> 0 | G90: =SUMIF(مبيعات!$B$4:$B$9000,$E90,مبيعات!$E$4:$E$5000) -> 0 | H90: 0 | I90: 0
B91: 88 | C91: =الاصناف!B91 -> 0 | D91: =الاصناف!C91 -> 0 | E91: =SUMIF(الاصناف!$B$4:$B$999,C91,الاصناف!$A$4:B1088) -> 0 | F91: =SUMIF(مشتريات!$B$4:$B$9000,$E91,مشتريات!$E$4:$E$5000) -> 0 | G91: =SUMIF(مبيعات!$B$4:$B$9000,$E91,مبيعات!$E$4:$E$5000) -> 0 | H91: 0 | I91: 0
B92: 89 | C92: =الاصناف!B92 -> 0 | D92: =الاصناف!C92 -> 0 | E92: =SUMIF(الاصناف!$B$4:$B$999,C92,الاصناف!$A$4:B1089) -> 0 | F92: =SUMIF(مشتريات!$B$4:$B$9000,$E92,مشتريات!$E$4:$E$5000) -> 0 | G92: =SUMIF(مبيعات!$B$4:$B$9000,$E92,مبيعات!$E$4:$E$5000) -> 0 | H92: 0 | I92: 0
B93: 90 | C93: =الاصناف!B93 -> 0 | D93: =الاصناف!C93 -> 0 | E93: =SUMIF(الاصناف!$B$4:$B$999,C93,الاصناف!$A$4:B1090) -> 0 | F93: =SUMIF(مشتريات!$B$4:$B$9000,$E93,مشتريات!$E$4:$E$5000) -> 0 | G93: =SUMIF(مبيعات!$B$4:$B$9000,$E93,مبيعات!$E$4:$E$5000) -> 0 | H93: 0 | I93: 0
B94: 91 | C94: =الاصناف!B94 -> 0 | D94: =الاصناف!C94 -> 0 | E94: =SUMIF(الاصناف!$B$4:$B$999,C94,الاصناف!$A$4:B1091) -> 0 | F94: =SUMIF(مشتريات!$B$4:$B$9000,$E94,مشتريات!$E$4:$E$5000) -> 0 | G94: =SUMIF(مبيعات!$B$4:$B$9000,$E94,مبيعات!$E$4:$E$5000) -> 0 | H94: 0 | I94: 0
B95: 92 | C95: =الاصناف!B95 -> 0 | D95: =الاصناف!C95 -> 0 | E95: =SUMIF(الاصناف!$B$4:$B$999,C95,الاصناف!$A$4:B1092) -> 0 | F95: =SUMIF(مشتريات!$B$4:$B$9000,$E95,مشتريات!$E$4:$E$5000) -> 0 | G95: =SUMIF(مبيعات!$B$4:$B$9000,$E95,مبيعات!$E$4:$E$5000) -> 0 | H95: 0 | I95: 0
B96: 93 | C96: =الاصناف!B96 -> 0 | D96: =الاصناف!C96 -> 0 | E96: =SUMIF(الاصناف!$B$4:$B$999,C96,الاصناف!$A$4:B1093) -> 0 | F96: =SUMIF(مشتريات!$B$4:$B$9000,$E96,مشتريات!$E$4:$E$5000) -> 0 | G96: =SUMIF(مبيعات!$B$4:$B$9000,$E96,مبيعات!$E$4:$E$5000) -> 0 | H96: 0 | I96: 0
B97: 94 | C97: =الاصناف!B97 -> 0 | D97: =الاصناف!C97 -> 0 | E97: =SUMIF(الاصناف!$B$4:$B$999,C97,الاصناف!$A$4:B1094) -> 0 | F97: =SUMIF(مشتريات!$B$4:$B$9000,$E97,مشتريات!$E$4:$E$5000) -> 0 | G97: =SUMIF(مبيعات!$B$4:$B$9000,$E97,مبيعات!$E$4:$E$5000) -> 0 | H97: 0 | I97: 0
B98: 95 | C98: =الاصناف!B98 -> 0 | D98: =الاصناف!C98 -> 0 | E98: =SUMIF(الاصناف!$B$4:$B$999,C98,الاصناف!$A$4:B1095) -> 0 | F98: =SUMIF(مشتريات!$B$4:$B$9000,$E98,مشتريات!$E$4:$E$5000) -> 0 | G98: =SUMIF(مبيعات!$B$4:$B$9000,$E98,مبيعات!$E$4:$E$5000) -> 0 | H98: 0 | I98: 0
B99: 96 | C99: =الاصناف!B99 -> 0 | D99: =الاصناف!C99 -> 0 | E99: =SUMIF(الاصناف!$B$4:$B$999,C99,الاصناف!A$4:$A1096) -> 0 | F99: =SUMIF(مشتريات!$B$4:$B$9000,$E99,مشتريات!$E$4:$E$5000) -> 0 | G99: =SUMIF(مبيعات!$B$4:$B$9000,$E99,مبيعات!$E$4:$E$5000) -> 0 | H99: 0 | I99: 0
B100: 97 | C100: =الاصناف!B100 -> 0 | D100: =الاصناف!C100 -> 0 | E100: =SUMIF(الاصناف!$B$4:$B$999,C100,الاصناف!$A$4:B1097) -> 0 | F100: =SUMIF(مشتريات!$B$4:$B$9000,$E100,مشتريات!$E$4:$E$5000) -> 0 | G100: =SUMIF(مبيعات!$B$4:$B$9000,$E100,مبيعات!$E$4:$E$5000) -> 0 | H100: 0 | I100: 0
B101: 98 | C101: =الاصناف!B101 -> 0 | D101: =الاصناف!C101 -> 0 | E101: =SUMIF(الاصناف!$B$4:$B$999,C101,الاصناف!$A$4:B1098) -> 0 | F101: =SUMIF(مشتريات!$B$4:$B$9000,$E101,مشتريات!$E$4:$E$5000) -> 0 | G101: =SUMIF(مبيعات!$B$4:$B$9000,$E101,مبيعات!$E$4:$E$5000) -> 0 | H101: 0 | I101: 0
B102: 99 | C102: =الاصناف!B102 -> 0 | D102: =الاصناف!C102 -> 0 | E102: =SUMIF(الاصناف!$B$4:$B$999,C102,الاصناف!$A$4:B1099) -> 0 | F102: =SUMIF(مشتريات!$B$4:$B$9000,$E102,مشتريات!$E$4:$E$5000) -> 0 | G102: =SUMIF(مبيعات!$B$4:$B$9000,$E102,مبيعات!$E$4:$E$5000) -> 0 | H102: 0 | I102: 0
B103: 100 | C103: =الاصناف!B103 -> 0 | D103: =الاصناف!C103 -> 0 | E103: =SUMIF(الاصناف!$B$4:$B$999,C103,الاصناف!$A$4:B1100) -> 0 | F103: =SUMIF(مشتريات!$B$4:$B$9000,$E103,مشتريات!$E$4:$E$5000) -> 0 | G103: =SUMIF(مبيعات!$B$4:$B$9000,$E103,مبيعات!$E$4:$E$5000) -> 0 | H103: 0 | I103: 0
B104: 101 | C104: =الاصناف!B104 -> 0 | D104: =الاصناف!C104 -> 0 | E104: =SUMIF(الاصناف!$B$4:$B$999,C104,الاصناف!$A$4:B1101) -> 0 | F104: =SUMIF(مشتريات!$B$4:$B$9000,$E104,مشتريات!$E$4:$E$5000) -> 0 | G104: =SUMIF(مبيعات!$B$4:$B$9000,$E104,مبيعات!$E$4:$E$5000) -> 0 | H104: 0 | I104: 0
B105: 102 | C105: =الاصناف!B105 -> 0 | D105: =الاصناف!C105 -> 0 | E105: =SUMIF(الاصناف!$B$4:$B$999,C105,الاصناف!$A$4:B1102) -> 0 | F105: =SUMIF(مشتريات!$B$4:$B$9000,$E105,مشتريات!$E$4:$E$5000) -> 0 | G105: =SUMIF(مبيعات!$B$4:$B$9000,$E105,مبيعات!$E$4:$E$5000) -> 0 | H105: 0 | I105: 0
B106: 103 | C106: =الاصناف!B106 -> 0 | D106: =الاصناف!C106 -> 0 | E106: =SUMIF(الاصناف!$B$4:$B$999,C106,الاصناف!$A$4:B1103) -> 0 | F106: =SUMIF(مشتريات!$B$4:$B$9000,$E106,مشتريات!$E$4:$E$5000) -> 0 | G106: =SUMIF(مبيعات!$B$4:$B$9000,$E106,مبيعات!$E$4:$E$5000) -> 0 | H106: 0 | I106: 0
B107: 104 | C107: =الاصناف!B107 -> 0 | D107: =الاصناف!C107 -> 0 | E107: =SUMIF(الاصناف!$B$4:$B$999,C107,الاصناف!$A$4:B1104) -> 0 | F107: =SUMIF(مشتريات!$B$4:$B$9000,$E107,مشتريات!$E$4:$E$5000) -> 0 | G107: =SUMIF(مبيعات!$B$4:$B$9000,$E107,مبيعات!$E$4:$E$5000) -> 0 | H107: 0 | I107: 0
B108: 105 | C108: =الاصناف!B108 -> 0 | D108: =الاصناف!C108 -> 0 | E108: =SUMIF(الاصناف!$B$4:$B$999,C108,الاصناف!$A$4:B1105) -> 0 | F108: =SUMIF(مشتريات!$B$4:$B$9000,$E108,مشتريات!$E$4:$E$5000) -> 0 | G108: =SUMIF(مبيعات!$B$4:$B$9000,$E108,مبيعات!$E$4:$E$5000) -> 0 | H108: 0 | I108: 0
B109: 106 | C109: =الاصناف!B109 -> 0 | D109: =الاصناف!C109 -> 0 | E109: =SUMIF(الاصناف!$B$4:$B$999,C109,الاصناف!$A$4:B1106) -> 0 | F109: =SUMIF(مشتريات!$B$4:$B$9000,$E109,مشتريات!$E$4:$E$5000) -> 0 | G109: =SUMIF(مبيعات!$B$4:$B$9000,$E109,مبيعات!$E$4:$E$5000) -> 0 | H109: 0 | I109: 0
B110: 107 | C110: =الاصناف!B110 -> 0 | D110: =الاصناف!C110 -> 0 | E110: =SUMIF(الاصناف!$B$4:$B$999,C110,الاصناف!$A$4:B1107) -> 0 | F110: =SUMIF(مشتريات!$B$4:$B$9000,$E110,مشتريات!$E$4:$E$5000) -> 0 | G110: =SUMIF(مبيعات!$B$4:$B$9000,$E110,مبيعات!$E$4:$E$5000) -> 0 | H110: 0 | I110: 0
B111: 108 | C111: =الاصناف!B111 -> 0 | D111: =الاصناف!C111 -> 0 | E111: =SUMIF(الاصناف!$B$4:$B$999,C111,الاصناف!$A$4:B1108) -> 0 | F111: =SUMIF(مشتريات!$B$4:$B$9000,$E111,مشتريات!$E$4:$E$5000) -> 0 | G111: =SUMIF(مبيعات!$B$4:$B$9000,$E111,مبيعات!$E$4:$E$5000) -> 0 | H111: 0 | I111: 0
B112: 109 | C112: =الاصناف!B112 -> 0 | D112: =الاصناف!C112 -> 0 | E112: =SUMIF(الاصناف!$B$4:$B$999,C112,الاصناف!$A$4:B1109) -> 0 | F112: =SUMIF(مشتريات!$B$4:$B$9000,$E112,مشتريات!$E$4:$E$5000) -> 0 | G112: =SUMIF(مبيعات!$B$4:$B$9000,$E112,مبيعات!$E$4:$E$5000) -> 0 | H112: 0 | I112: 0
B113: 110 | C113: =الاصناف!B113 -> 0 | D113: =الاصناف!C113 -> 0 | E113: =SUMIF(الاصناف!$B$4:$B$999,C113,الاصناف!$A$4:B1110) -> 0 | F113: =SUMIF(مشتريات!$B$4:$B$9000,$E113,مشتريات!$E$4:$E$5000) -> 0 | G113: =SUMIF(مبيعات!$B$4:$B$9000,$E113,مبيعات!$E$4:$E$5000) -> 0 | H113: 0 | I113: 0
B114: 111 | C114: =الاصناف!B114 -> 0 | D114: =الاصناف!C114 -> 0 | E114: =SUMIF(الاصناف!$B$4:$B$999,C114,الاصناف!$A$4:B1111) -> 0 | F114: =SUMIF(مشتريات!$B$4:$B$9000,$E114,مشتريات!$E$4:$E$5000) -> 0 | G114: =SUMIF(مبيعات!$B$4:$B$9000,$E114,مبيعات!$E$4:$E$5000) -> 0 | H114: 0 | I114: 0
B115: 112 | C115: =الاصناف!B115 -> 0 | D115: =الاصناف!C115 -> 0 | E115: =SUMIF(الاصناف!$B$4:$B$999,C115,الاصناف!$A$4:B1112) -> 0 | F115: =SUMIF(مشتريات!$B$4:$B$9000,$E115,مشتريات!$E$4:$E$5000) -> 0 | G115: =SUMIF(مبيعات!$B$4:$B$9000,$E115,مبيعات!$E$4:$E$5000) -> 0 | H115: 0 | I115: 0
B116: 113 | C116: =الاصناف!B116 -> 0 | D116: =الاصناف!C116 -> 0 | E116: =SUMIF(الاصناف!$B$4:$B$999,C116,الاصناف!$A$4:B1113) -> 0 | F116: =SUMIF(مشتريات!$B$4:$B$9000,$E116,مشتريات!$E$4:$E$5000) -> 0 | G116: =SUMIF(مبيعات!$B$4:$B$9000,$E116,مبيعات!$E$4:$E$5000) -> 0 | H116: 0 | I116: 0
B117: 114 | C117: =الاصناف!B117 -> 0 | D117: =الاصناف!C117 -> 0 | E117: =SUMIF(الاصناف!$B$4:$B$999,C117,الاصناف!$A$4:B1114) -> 0 | F117: =SUMIF(مشتريات!$B$4:$B$9000,$E117,مشتريات!$E$4:$E$5000) -> 0 | G117: =SUMIF(مبيعات!$B$4:$B$9000,$E117,مبيعات!$E$4:$E$5000) -> 0 | H117: 0 | I117: 0
B118: 115 | C118: =الاصناف!B118 -> 0 | D118: =الاصناف!C118 -> 0 | E118: =SUMIF(الاصناف!$B$4:$B$999,C118,الاصناف!A$4:$A1115) -> 0 | F118: =SUMIF(مشتريات!$B$4:$B$9000,$E118,مشتريات!$E$4:$E$5000) -> 0 | G118: =SUMIF(مبيعات!$B$4:$B$9000,$E118,مبيعات!$E$4:$E$5000) -> 0 | H118: 0 | I118: 0
B119: 116 | C119: =الاصناف!B119 -> 0 | D119: =الاصناف!C119 -> 0 | E119: =SUMIF(الاصناف!$B$4:$B$999,C119,الاصناف!$A$4:B1116) -> 0 | F119: =SUMIF(مشتريات!$B$4:$B$9000,$E119,مشتريات!$E$4:$E$5000) -> 0 | G119: =SUMIF(مبيعات!$B$4:$B$9000,$E119,مبيعات!$E$4:$E$5000) -> 0 | H119: 0 | I119: 0
B120: 117 | C120: =الاصناف!B120 -> 0 | D120: =الاصناف!C120 -> 0 | E120: =SUMIF(الاصناف!$B$4:$B$999,C120,الاصناف!$A$4:B1117) -> 0 | F120: =SUMIF(مشتريات!$B$4:$B$9000,$E120,مشتريات!$E$4:$E$5000) -> 0 | G120: =SUMIF(مبيعات!$B$4:$B$9000,$E120,مبيعات!$E$4:$E$5000) -> 0 | H120: 0 | I120: 0
B121: 118 | C121: =الاصناف!B121 -> 0 | D121: =الاصناف!C121 -> 0 | E121: =SUMIF(الاصناف!$B$4:$B$999,C121,الاصناف!$A$4:B1118) -> 0 | F121: =SUMIF(مشتريات!$B$4:$B$9000,$E121,مشتريات!$E$4:$E$5000) -> 0 | G121: =SUMIF(مبيعات!$B$4:$B$9000,$E121,مبيعات!$E$4:$E$5000) -> 0 | H121: 0 | I121: 0
B122: 119 | C122: =الاصناف!B122 -> 0 | D122: =الاصناف!C122 -> 0 | E122: =SUMIF(الاصناف!$B$4:$B$999,C122,الاصناف!$A$4:B1119) -> 0 | F122: =SUMIF(مشتريات!$B$4:$B$9000,$E122,مشتريات!$E$4:$E$5000) -> 0 | G122: =SUMIF(مبيعات!$B$4:$B$9000,$E122,مبيعات!$E$4:$E$5000) -> 0 | H122: 0 | I122: 0
B123: 120 | C123: =الاصناف!B123 -> 0 | D123: =الاصناف!C123 -> 0 | E123: =SUMIF(الاصناف!$B$4:$B$999,C123,الاصناف!$A$4:B1120) -> 0 | F123: =SUMIF(مشتريات!$B$4:$B$9000,$E123,مشتريات!$E$4:$E$5000) -> 0 | G123: =SUMIF(مبيعات!$B$4:$B$9000,$E123,مبيعات!$E$4:$E$5000) -> 0 | H123: 0 | I123: 0
B124: 121 | C124: =الاصناف!B124 -> 0 | D124: =الاصناف!C124 -> 0 | E124: =SUMIF(الاصناف!$B$4:$B$999,C124,الاصناف!$A$4:B1121) -> 0 | F124: =SUMIF(مشتريات!$B$4:$B$9000,$E124,مشتريات!$E$4:$E$5000) -> 0 | G124: =SUMIF(مبيعات!$B$4:$B$9000,$E124,مبيعات!$E$4:$E$5000) -> 0 | H124: 0 | I124: 0
B125: 122 | C125: =الاصناف!B125 -> 0 | D125: =الاصناف!C125 -> 0 | E125: =SUMIF(الاصناف!$B$4:$B$999,C125,الاصناف!$A$4:B1122) -> 0 | F125: =SUMIF(مشتريات!$B$4:$B$9000,$E125,مشتريات!$E$4:$E$5000) -> 0 | G125: =SUMIF(مبيعات!$B$4:$B$9000,$E125,مبيعات!$E$4:$E$5000) -> 0 | H125: 0 | I125: 0
B126: 123 | C126: =الاصناف!B126 -> 0 | D126: =الاصناف!C126 -> 0 | E126: =SUMIF(الاصناف!$B$4:$B$999,C126,الاصناف!$A$4:B1123) -> 0 | F126: =SUMIF(مشتريات!$B$4:$B$9000,$E126,مشتريات!$E$4:$E$5000) -> 0 | G126: =SUMIF(مبيعات!$B$4:$B$9000,$E126,مبيعات!$E$4:$E$5000) -> 0 | H126: 0 | I126: 0
B127: 124 | C127: =الاصناف!B127 -> 0 | D127: =الاصناف!C127 -> 0 | E127: =SUMIF(الاصناف!$B$4:$B$999,C127,الاصناف!$A$4:B1124) -> 0 | F127: =SUMIF(مشتريات!$B$4:$B$9000,$E127,مشتريات!$E$4:$E$5000) -> 0 | G127: =SUMIF(مبيعات!$B$4:$B$9000,$E127,مبيعات!$E$4:$E$5000) -> 0 | H127: 0 | I127: 0
B128: 125 | C128: =الاصناف!B128 -> 0 | D128: =الاصناف!C128 -> 0 | E128: =SUMIF(الاصناف!$B$4:$B$999,C128,الاصناف!$A$4:B1125) -> 0 | F128: =SUMIF(مشتريات!$B$4:$B$9000,$E128,مشتريات!$E$4:$E$5000) -> 0 | G128: =SUMIF(مبيعات!$B$4:$B$9000,$E128,مبيعات!$E$4:$E$5000) -> 0 | H128: 0 | I128: 0
B129: 126 | C129: =الاصناف!B129 -> 0 | D129: =الاصناف!C129 -> 0 | E129: =SUMIF(الاصناف!$B$4:$B$999,C129,الاصناف!$A$4:B1126) -> 0 | F129: =SUMIF(مشتريات!$B$4:$B$9000,$E129,مشتريات!$E$4:$E$5000) -> 0 | G129: =SUMIF(مبيعات!$B$4:$B$9000,$E129,مبيعات!$E$4:$E$5000) -> 0 | H129: 0 | I129: 0
B130: 127 | C130: =الاصناف!B130 -> 0 | D130: =الاصناف!C130 -> 0 | E130: =SUMIF(الاصناف!$B$4:$B$999,C130,الاصناف!$A$4:B1127) -> 0 | F130: =SUMIF(مشتريات!$B$4:$B$9000,$E130,مشتريات!$E$4:$E$5000) -> 0 | G130: =SUMIF(مبيعات!$B$4:$B$9000,$E130,مبيعات!$E$4:$E$5000) -> 0 | H130: 0 | I130: 0
B131: 128 | C131: =الاصناف!B131 -> 0 | D131: =الاصناف!C131 -> 0 | E131: =SUMIF(الاصناف!$B$4:$B$999,C131,الاصناف!$A$4:B1128) -> 0 | F131: =SUMIF(مشتريات!$B$4:$B$9000,$E131,مشتريات!$E$4:$E$5000) -> 0 | G131: =SUMIF(مبيعات!$B$4:$B$9000,$E131,مبيعات!$E$4:$E$5000) -> 0 | H131: 0 | I131: 0
B132: 129 | C132: =الاصناف!B132 -> 0 | D132: =الاصناف!C132 -> 0 | E132: =SUMIF(الاصناف!$B$4:$B$999,C132,الاصناف!$A$4:B1129) -> 0 | F132: =SUMIF(مشتريات!$B$4:$B$9000,$E132,مشتريات!$E$4:$E$5000) -> 0 | G132: =SUMIF(مبيعات!$B$4:$B$9000,$E132,مبيعات!$E$4:$E$5000) -> 0 | H132: =F132-G132 -> 0 | I132: 0
B133: 130 | C133: =الاصناف!B133 -> 0 | D133: =الاصناف!C133 -> 0 | E133: =SUMIF(الاصناف!$B$4:$B$999,C133,الاصناف!$A$4:B1130) -> 0 | F133: =SUMIF(مشتريات!$B$4:$B$9000,$E133,مشتريات!$E$4:$E$5000) -> 0 | G133: =SUMIF(مبيعات!$B$4:$B$9000,$E133,مبيعات!$E$4:$E$5000) -> 0 | H133: 0 | I133: =H133/12 -> 0
B134: 131 | C134: =الاصناف!B134 -> 0 | D134: =الاصناف!C134 -> 0 | E134: =SUMIF(الاصناف!$B$4:$B$999,C134,الاصناف!$A$4:B1131) -> 0 | F134: =SUMIF(مشتريات!$B$4:$B$9000,$E134,مشتريات!$E$4:$E$5000) -> 0 | G134: =SUMIF(مبيعات!$B$4:$B$9000,$E134,مبيعات!$E$4:$E$5000) -> 0 | H134: 0 | I134: 0
B135: =IF(C135<>"",B134+1,"") -> 132 | C135: =الاصناف!B135 -> 0 | D135: =الاصناف!C135 -> 0 | E135: =SUMIF(الاصناف!$B$4:$B$999,C135,الاصناف!$A$4:B1132) -> 0 | F135: =SUMIF(مشتريات!$B$4:$B$9000,$E135,مشتريات!$E$4:$E$5000) -> 0 | G135: =SUMIF(مبيعات!$B$4:$B$9000,$E135,مبيعات!$E$4:$E$5000) -> 0 | H135: 0 | I135: 0
B136: 133 | C136: =الاصناف!B136 -> 0 | D136: =الاصناف!C136 -> 0 | E136: =SUMIF(الاصناف!$B$4:$B$999,C136,الاصناف!$A$4:B1133) -> 0 | F136: =SUMIF(مشتريات!$B$4:$B$9000,$E136,مشتريات!$E$4:$E$5000) -> 0 | G136: =SUMIF(مبيعات!$B$4:$B$9000,$E136,مبيعات!$E$4:$E$5000) -> 0 | H136: 0 | I136: 0
B137: 134 | C137: =الاصناف!B137 -> 0 | D137: =الاصناف!C137 -> 0 | E137: =SUMIF(الاصناف!$B$4:$B$999,C137,الاصناف!$A$4:B1134) -> 0 | F137: =SUMIF(مشتريات!$B$4:$B$9000,$E137,مشتريات!$E$4:$E$5000) -> 0 | G137: =SUMIF(مبيعات!$B$4:$B$9000,$E137,مبيعات!$E$4:$E$5000) -> 0 | H137: 0 | I137: 0
B138: 135 | C138: =الاصناف!B138 -> 0 | D138: =الاصناف!C138 -> 0 | E138: =SUMIF(الاصناف!$B$4:$B$999,C138,الاصناف!$A$4:B1135) -> 0 | F138: =SUMIF(مشتريات!$B$4:$B$9000,$E138,مشتريات!$E$4:$E$5000) -> 0 | G138: =SUMIF(مبيعات!$B$4:$B$9000,$E138,مبيعات!$E$4:$E$5000) -> 0 | H138: 0 | I138: 0
B139: 136 | C139: =الاصناف!B139 -> 0 | D139: =الاصناف!C139 -> 0 | E139: =SUMIF(الاصناف!$B$4:$B$999,C139,الاصناف!$A$4:B1136) -> 0 | F139: =SUMIF(مشتريات!$B$4:$B$9000,$E139,مشتريات!$E$4:$E$5000) -> 0 | G139: =SUMIF(مبيعات!$B$4:$B$9000,$E139,مبيعات!$E$4:$E$5000) -> 0 | H139: 0 | I139: 0
B140: 137 | C140: =الاصناف!B140 -> 0 | D140: =الاصناف!C140 -> 0 | E140: =SUMIF(الاصناف!$B$4:$B$999,C140,الاصناف!$A$4:B1137) -> 0 | F140: =SUMIF(مشتريات!$B$4:$B$9000,$E140,مشتريات!$E$4:$E$5000) -> 0 | G140: =SUMIF(مبيعات!$B$4:$B$9000,$E140,مبيعات!$E$4:$E$5000) -> 0 | H140: 0 | I140: 0
B141: 138 | C141: =الاصناف!B141 -> 0 | D141: =الاصناف!C141 -> 0 | E141: =SUMIF(الاصناف!$B$4:$B$999,C141,الاصناف!$A$4:B1138) -> 0 | F141: =SUMIF(مشتريات!$B$4:$B$9000,$E141,مشتريات!$E$4:$E$5000) -> 0 | G141: =SUMIF(مبيعات!$B$4:$B$9000,$E141,مبيعات!$E$4:$E$5000) -> 0 | H141: 0 | I141: 0
B142: 139 | C142: =الاصناف!B142 -> 0 | D142: =الاصناف!C142 -> 0 | E142: =SUMIF(الاصناف!$B$4:$B$999,C142,الاصناف!$A$4:B1139) -> 0 | F142: =SUMIF(مشتريات!$B$4:$B$9000,$E142,مشتريات!$E$4:$E$5000) -> 0 | G142: =SUMIF(مبيعات!$B$4:$B$9000,$E142,مبيعات!$E$4:$E$5000) -> 0 | H142: 0 | I142: 0
B143: 140 | C143: =الاصناف!B143 -> 0 | D143: =الاصناف!C143 -> 0 | E143: =SUMIF(الاصناف!$B$4:$B$999,C143,الاصناف!$A$4:B1140) -> 0 | F143: =SUMIF(مشتريات!$B$4:$B$9000,$E143,مشتريات!$E$4:$E$5000) -> 0 | G143: =SUMIF(مبيعات!$B$4:$B$9000,$E143,مبيعات!$E$4:$E$5000) -> 0 | H143: 0 | I143: 0
B144: 141 | C144: =الاصناف!B144 -> 0 | D144: =الاصناف!C144 -> 0 | E144: =SUMIF(الاصناف!$B$4:$B$999,C144,الاصناف!$A$4:B1141) -> 0 | F144: =SUMIF(مشتريات!$B$4:$B$9000,$E144,مشتريات!$E$4:$E$5000) -> 0 | G144: =SUMIF(مبيعات!$B$4:$B$9000,$E144,مبيعات!$E$4:$E$5000) -> 0 | H144: 0 | I144: 0
B145: 142 | C145: =الاصناف!B145 -> 0 | D145: =الاصناف!C145 -> 0 | E145: =SUMIF(الاصناف!$B$4:$B$999,C145,الاصناف!$A$4:B1142) -> 0 | F145: =SUMIF(مشتريات!$B$4:$B$9000,$E145,مشتريات!$E$4:$E$5000) -> 0 | G145: =SUMIF(مبيعات!$B$4:$B$9000,$E145,مبيعات!$E$4:$E$5000) -> 0 | H145: 0 | I145: 0
B146: 143 | C146: =الاصناف!B146 -> 0 | D146: =الاصناف!C146 -> 0 | E146: =SUMIF(الاصناف!$B$4:$B$999,C146,الاصناف!$A$4:B1143) -> 0 | F146: =SUMIF(مشتريات!$B$4:$B$9000,$E146,مشتريات!$E$4:$E$5000) -> 0 | G146: =SUMIF(مبيعات!$B$4:$B$9000,$E146,مبيعات!$E$4:$E$5000) -> 0 | H146: 0 | I146: 0
B147: 144 | C147: =الاصناف!B147 -> 0 | D147: =الاصناف!C147 -> 0 | E147: =SUMIF(الاصناف!$B$4:$B$999,C147,الاصناف!$A$4:B1144) -> 0 | F147: =SUMIF(مشتريات!$B$4:$B$9000,$E147,مشتريات!$E$4:$E$5000) -> 0 | G147: =SUMIF(مبيعات!$B$4:$B$9000,$E147,مبيعات!$E$4:$E$5000) -> 0 | H147: 0 | I147: 0
B148: 145 | C148: =الاصناف!B148 -> 0 | D148: =الاصناف!C148 -> 0 | E148: =SUMIF(الاصناف!$B$4:$B$999,C148,الاصناف!$A$4:B1145) -> 0 | F148: =SUMIF(مشتريات!$B$4:$B$9000,$E148,مشتريات!$E$4:$E$5000) -> 0 | G148: =SUMIF(مبيعات!$B$4:$B$9000,$E148,مبيعات!$E$4:$E$5000) -> 0 | H148: 0 | I148: 0
B149: 146 | C149: =الاصناف!B149 -> 0 | D149: =الاصناف!C149 -> 0 | E149: =SUMIF(الاصناف!$B$4:$B$999,C149,الاصناف!$A$4:B1146) -> 0 | F149: =SUMIF(مشتريات!$B$4:$B$9000,$E149,مشتريات!$E$4:$E$5000) -> 0 | G149: =SUMIF(مبيعات!$B$4:$B$9000,$E149,مبيعات!$E$4:$E$5000) -> 0 | H149: 0 | I149: 0
B150: 147 | C150: =الاصناف!B150 -> 0 | D150: =الاصناف!C150 -> 0 | E150: =SUMIF(الاصناف!$B$4:$B$999,C150,الاصناف!$A$4:B1147) -> 0 | F150: =SUMIF(مشتريات!$B$4:$B$9000,$E150,مشتريات!$E$4:$E$5000) -> 0 | G150: =SUMIF(مبيعات!$B$4:$B$9000,$E150,مبيعات!$E$4:$E$5000) -> 0 | H150: 0 | I150: 0
B151: 148 | C151: =الاصناف!B151 -> 0 | D151: =الاصناف!C151 -> 0 | E151: =SUMIF(الاصناف!$B$4:$B$999,C151,الاصناف!$A$4:B1148) -> 0 | F151: =SUMIF(مشتريات!$B$4:$B$9000,$E151,مشتريات!$E$4:$E$5000) -> 0 | G151: =SUMIF(مبيعات!$B$4:$B$9000,$E151,مبيعات!$E$4:$E$5000) -> 0 | H151: 0 | I151: 0
B152: 149 | C152: =الاصناف!B152 -> 0 | D152: =الاصناف!C152 -> 0 | E152: =SUMIF(الاصناف!$B$4:$B$999,C152,الاصناف!$A$4:B1149) -> 0 | F152: =SUMIF(مشتريات!$B$4:$B$9000,$E152,مشتريات!$E$4:$E$5000) -> 0 | G152: =SUMIF(مبيعات!$B$4:$B$9000,$E152,مبيعات!$E$4:$E$5000) -> 0 | H152: 0 | I152: 0
B153: 150 | C153: =الاصناف!B153 -> 0 | D153: =الاصناف!C153 -> 0 | E153: =SUMIF(الاصناف!$B$4:$B$999,C153,الاصناف!$A$4:B1150) -> 0 | F153: =SUMIF(مشتريات!$B$4:$B$9000,$E153,مشتريات!$E$4:$E$5000) -> 0 | G153: =SUMIF(مبيعات!$B$4:$B$9000,$E153,مبيعات!$E$4:$E$5000) -> 0 | H153: 0 | I153: 0
B154: 151 | C154: =الاصناف!B154 -> 0 | D154: =الاصناف!C154 -> 0 | E154: =SUMIF(الاصناف!$B$4:$B$999,C154,الاصناف!$A$4:B1151) -> 0 | F154: =SUMIF(مشتريات!$B$4:$B$9000,$E154,مشتريات!$E$4:$E$5000) -> 0 | G154: =SUMIF(مبيعات!$B$4:$B$9000,$E154,مبيعات!$E$4:$E$5000) -> 0 | H154: 0 | I154: 0
B155: 152 | C155: =الاصناف!B155 -> 0 | D155: =الاصناف!C155 -> 0 | E155: =SUMIF(الاصناف!$B$4:$B$999,C155,الاصناف!$A$4:B1152) -> 0 | F155: =SUMIF(مشتريات!$B$4:$B$9000,$E155,مشتريات!$E$4:$E$5000) -> 0 | G155: =SUMIF(مبيعات!$B$4:$B$9000,$E155,مبيعات!$E$4:$E$5000) -> 0 | H155: 0 | I155: 0
B156: 153 | C156: =الاصناف!B156 -> 0 | D156: =الاصناف!C156 -> 0 | E156: =SUMIF(الاصناف!$B$4:$B$999,C156,الاصناف!$A$4:B1153) -> 0 | F156: =SUMIF(مشتريات!$B$4:$B$9000,$E156,مشتريات!$E$4:$E$5000) -> 0 | G156: =SUMIF(مبيعات!$B$4:$B$9000,$E156,مبيعات!$E$4:$E$5000) -> 0 | H156: 0 | I156: 0
B157: 154 | C157: =الاصناف!B157 -> 0 | D157: =الاصناف!C157 -> 0 | E157: =SUMIF(الاصناف!$B$4:$B$999,C157,الاصناف!$A$4:B1154) -> 0 | F157: =SUMIF(مشتريات!$B$4:$B$9000,$E157,مشتريات!$E$4:$E$5000) -> 0 | G157: =SUMIF(مبيعات!$B$4:$B$9000,$E157,مبيعات!$E$4:$E$5000) -> 0 | H157: 0 | I157: 0
B158: 155 | C158: =الاصناف!B158 -> 0 | D158: =الاصناف!C158 -> 0 | E158: =SUMIF(الاصناف!$B$4:$B$999,C158,الاصناف!$A$4:B1155) -> 0 | F158: =SUMIF(مشتريات!$B$4:$B$9000,$E158,مشتريات!$E$4:$E$5000) -> 0 | G158: =SUMIF(مبيعات!$B$4:$B$9000,$E158,مبيعات!$E$4:$E$5000) -> 0 | H158: 0 | I158: 0
B159: 156 | C159: =الاصناف!B159 -> 0 | D159: =الاصناف!C159 -> 0 | E159: =SUMIF(الاصناف!$B$4:$B$999,C159,الاصناف!$A$4:B1156) -> 0 | F159: =SUMIF(مشتريات!$B$4:$B$9000,$E159,مشتريات!$E$4:$E$5000) -> 0 | G159: =SUMIF(مبيعات!$B$4:$B$9000,$E159,مبيعات!$E$4:$E$5000) -> 0 | H159: 0 | I159: 0
B160: 157 | C160: =الاصناف!B160 -> 0 | D160: =الاصناف!C160 -> 0 | E160: =SUMIF(الاصناف!$B$4:$B$999,C160,الاصناف!$A$4:B1157) -> 0 | F160: =SUMIF(مشتريات!$B$4:$B$9000,$E160,مشتريات!$E$4:$E$5000) -> 0 | G160: =SUMIF(مبيعات!$B$4:$B$9000,$E160,مبيعات!$E$4:$E$5000) -> 0 | H160: 0 | I160: 0
B161: 158 | C161: =الاصناف!B161 -> 0 | D161: =الاصناف!C161 -> 0 | E161: =SUMIF(الاصناف!$B$4:$B$999,C161,الاصناف!$A$4:B1158) -> 0 | F161: =SUMIF(مشتريات!$B$4:$B$9000,$E161,مشتريات!$E$4:$E$5000) -> 0 | G161: =SUMIF(مبيعات!$B$4:$B$9000,$E161,مبيعات!$E$4:$E$5000) -> 0 | H161: 0 | I161: 0
B162: 159 | C162: =الاصناف!B162 -> 0 | D162: =الاصناف!C162 -> 0 | E162: =SUMIF(الاصناف!$B$4:$B$999,C162,الاصناف!$A$4:B1159) -> 0 | F162: =SUMIF(مشتريات!$B$4:$B$9000,$E162,مشتريات!$E$4:$E$5000) -> 0 | G162: =SUMIF(مبيعات!$B$4:$B$9000,$E162,مبيعات!$E$4:$E$5000) -> 0 | H162: 0 | I162: 0
B163: 160 | C163: =الاصناف!B163 -> 0 | D163: =الاصناف!C163 -> 0 | E163: =SUMIF(الاصناف!$B$4:$B$999,C163,الاصناف!$A$4:B1160) -> 0 | F163: =SUMIF(مشتريات!$B$4:$B$9000,$E163,مشتريات!$E$4:$E$5000) -> 0 | G163: =SUMIF(مبيعات!$B$4:$B$9000,$E163,مبيعات!$E$4:$E$5000) -> 0 | H163: 0 | I163: 0
B164: 161 | C164: =الاصناف!B164 -> 0 | D164: =الاصناف!C164 -> 0 | E164: =SUMIF(الاصناف!$B$4:$B$999,C164,الاصناف!$A$4:B1161) -> 0 | F164: =SUMIF(مشتريات!$B$4:$B$9000,$E164,مشتريات!$E$4:$E$5000) -> 0 | G164: =SUMIF(مبيعات!$B$4:$B$9000,$E164,مبيعات!$E$4:$E$5000) -> 0 | H164: 0 | I164: 0
B165: 162 | C165: =الاصناف!B165 -> 0 | D165: =الاصناف!C165 -> 0 | E165: =SUMIF(الاصناف!$B$4:$B$999,C165,الاصناف!$A$4:B1162) -> 0 | F165: =SUMIF(مشتريات!$B$4:$B$9000,$E165,مشتريات!$E$4:$E$5000) -> 0 | G165: =SUMIF(مبيعات!$B$4:$B$9000,$E165,مبيعات!$E$4:$E$5000) -> 0 | H165: 0 | I165: 0
B166: 163 | C166: =الاصناف!B166 -> 0 | D166: =الاصناف!C166 -> 0 | E166: =SUMIF(الاصناف!$B$4:$B$999,C166,الاصناف!$A$4:B1163) -> 0 | F166: =SUMIF(مشتريات!$B$4:$B$9000,$E166,مشتريات!$E$4:$E$5000) -> 0 | G166: =SUMIF(مبيعات!$B$4:$B$9000,$E166,مبيعات!$E$4:$E$5000) -> 0 | H166: 0 | I166: 0
B167: 164 | C167: =الاصناف!B167 -> 0 | D167: =الاصناف!C167 -> 0 | E167: =SUMIF(الاصناف!$B$4:$B$999,C167,الاصناف!$A$4:B1164) -> 0 | F167: =SUMIF(مشتريات!$B$4:$B$9000,$E167,مشتريات!$E$4:$E$5000) -> 0 | G167: =SUMIF(مبيعات!$B$4:$B$9000,$E167,مبيعات!$E$4:$E$5000) -> 0 | H167: 0 | I167: 0
B168: 165 | C168: =الاصناف!B168 -> 0 | D168: =الاصناف!C168 -> 0 | E168: =SUMIF(الاصناف!$B$4:$B$999,C168,الاصناف!$A$4:B1165) -> 0 | F168: =SUMIF(مشتريات!$B$4:$B$9000,$E168,مشتريات!$E$4:$E$5000) -> 0 | G168: =SUMIF(مبيعات!$B$4:$B$9000,$E168,مبيعات!$E$4:$E$5000) -> 0 | H168: 0 | I168: 0
B169: 166 | C169: =الاصناف!B169 -> 0 | D169: =الاصناف!C169 -> 0 | E169: =SUMIF(الاصناف!$B$4:$B$999,C169,الاصناف!$A$4:B1166) -> 0 | F169: =SUMIF(مشتريات!$B$4:$B$9000,$E169,مشتريات!$E$4:$E$5000) -> 0 | G169: =SUMIF(مبيعات!$B$4:$B$9000,$E169,مبيعات!$E$4:$E$5000) -> 0 | H169: 0 | I169: 0
B170: 167 | C170: =الاصناف!B170 -> 0 | D170: =الاصناف!C170 -> 0 | E170: =SUMIF(الاصناف!$B$4:$B$999,C170,الاصناف!$A$4:B1167) -> 0 | F170: =SUMIF(مشتريات!$B$4:$B$9000,$E170,مشتريات!$E$4:$E$5000) -> 0 | G170: =SUMIF(مبيعات!$B$4:$B$9000,$E170,مبيعات!$E$4:$E$5000) -> 0 | H170: 0 | I170: 0
B171: 168 | C171: =الاصناف!B171 -> 0 | D171: =الاصناف!C171 -> 0 | E171: =SUMIF(الاصناف!$B$4:$B$999,C171,الاصناف!$A$4:B1168) -> 0 | F171: =SUMIF(مشتريات!$B$4:$B$9000,$E171,مشتريات!$E$4:$E$5000) -> 0 | G171: =SUMIF(مبيعات!$B$4:$B$9000,$E171,مبيعات!$E$4:$E$5000) -> 0 | H171: 0 | I171: 0
B172: 169 | C172: =الاصناف!B172 -> 0 | D172: =الاصناف!C172 -> 0 | E172: =SUMIF(الاصناف!$B$4:$B$999,C172,الاصناف!$A$4:B1169) -> 0 | F172: =SUMIF(مشتريات!$B$4:$B$9000,$E172,مشتريات!$E$4:$E$5000) -> 0 | G172: =SUMIF(مبيعات!$B$4:$B$9000,$E172,مبيعات!$E$4:$E$5000) -> 0 | H172: 0 | I172: 0
B173: 170 | C173: =الاصناف!B173 -> 0 | D173: =الاصناف!C173 -> 0 | E173: =SUMIF(الاصناف!$B$4:$B$999,C173,الاصناف!$A$4:B1170) -> 0 | F173: =SUMIF(مشتريات!$B$4:$B$9000,$E173,مشتريات!$E$4:$E$5000) -> 0 | G173: =SUMIF(مبيعات!$B$4:$B$9000,$E173,مبيعات!$E$4:$E$5000) -> 0 | H173: 0 | I173: 0
B174: 171 | C174: =الاصناف!B174 -> 0 | D174: =الاصناف!C174 -> 0 | E174: =SUMIF(الاصناف!$B$4:$B$999,C174,الاصناف!$A$4:B1171) -> 0 | F174: =SUMIF(مشتريات!$B$4:$B$9000,$E174,مشتريات!$E$4:$E$5000) -> 0 | G174: =SUMIF(مبيعات!$B$4:$B$9000,$E174,مبيعات!$E$4:$E$5000) -> 0 | H174: 0 | I174: 0
B175: 172 | C175: =الاصناف!B175 -> 0 | D175: =الاصناف!C175 -> 0 | E175: =SUMIF(الاصناف!$B$4:$B$999,C175,الاصناف!$A$4:B1172) -> 0 | F175: =SUMIF(مشتريات!$B$4:$B$9000,$E175,مشتريات!$E$4:$E$5000) -> 0 | G175: =SUMIF(مبيعات!$B$4:$B$9000,$E175,مبيعات!$E$4:$E$5000) -> 0 | H175: 0 | I175: 0
B176: 173 | C176: =الاصناف!B176 -> 0 | D176: =الاصناف!C176 -> 0 | E176: =SUMIF(الاصناف!$B$4:$B$999,C176,الاصناف!$A$4:B1173) -> 0 | F176: =SUMIF(مشتريات!$B$4:$B$9000,$E176,مشتريات!$E$4:$E$5000) -> 0 | G176: =SUMIF(مبيعات!$B$4:$B$9000,$E176,مبيعات!$E$4:$E$5000) -> 0 | H176: 0 | I176: 0
B177: 174 | C177: =الاصناف!B177 -> 0 | D177: =الاصناف!C177 -> 0 | E177: =SUMIF(الاصناف!$B$4:$B$999,C177,الاصناف!$A$4:B1174) -> 0 | F177: =SUMIF(مشتريات!$B$4:$B$9000,$E177,مشتريات!$E$4:$E$5000) -> 0 | G177: =SUMIF(مبيعات!$B$4:$B$9000,$E177,مبيعات!$E$4:$E$5000) -> 0 | H177: 0 | I177: 0
B178: 175 | C178: =الاصناف!B178 -> 0 | D178: =الاصناف!C178 -> 0 | E178: =SUMIF(الاصناف!$B$4:$B$999,C178,الاصناف!$A$4:B1175) -> 0 | F178: =SUMIF(مشتريات!$B$4:$B$9000,$E178,مشتريات!$E$4:$E$5000) -> 0 | G178: =SUMIF(مبيعات!$B$4:$B$9000,$E178,مبيعات!$E$4:$E$5000) -> 0 | H178: 0 | I178: 0
B179: 176 | C179: =الاصناف!B179 -> 0 | D179: =الاصناف!C179 -> 0 | E179: =SUMIF(الاصناف!$B$4:$B$999,C179,الاصناف!$A$4:B1176) -> 0 | F179: =SUMIF(مشتريات!$B$4:$B$9000,$E179,مشتريات!$E$4:$E$5000) -> 0 | G179: =SUMIF(مبيعات!$B$4:$B$9000,$E179,مبيعات!$E$4:$E$5000) -> 0 | H179: 0 | I179: 0
B180: 177 | C180: =الاصناف!B180 -> 0 | D180: =الاصناف!C180 -> 0 | E180: =SUMIF(الاصناف!$B$4:$B$999,C180,الاصناف!$A$4:B1177) -> 0 | F180: =SUMIF(مشتريات!$B$4:$B$9000,$E180,مشتريات!$E$4:$E$5000) -> 0 | G180: =SUMIF(مبيعات!$B$4:$B$9000,$E180,مبيعات!$E$4:$E$5000) -> 0 | H180: 0 | I180: 0
B181: 178 | C181: =الاصناف!B181 -> 0 | D181: =الاصناف!C181 -> 0 | E181: =SUMIF(الاصناف!$B$4:$B$999,C181,الاصناف!$A$4:B1178) -> 0 | F181: =SUMIF(مشتريات!$B$4:$B$9000,$E181,مشتريات!$E$4:$E$5000) -> 0 | G181: =SUMIF(مبيعات!$B$4:$B$9000,$E181,مبيعات!$E$4:$E$5000) -> 0 | H181: 0 | I181: 0
B182: 179 | C182: =الاصناف!B182 -> 0 | D182: =الاصناف!C182 -> 0 | E182: =SUMIF(الاصناف!$B$4:$B$999,C182,الاصناف!$A$4:B1179) -> 0 | F182: =SUMIF(مشتريات!$B$4:$B$9000,$E182,مشتريات!$E$4:$E$5000) -> 0 | G182: =SUMIF(مبيعات!$B$4:$B$9000,$E182,مبيعات!$E$4:$E$5000) -> 0 | H182: 0 | I182: 0
B183: 180 | C183: =الاصناف!B183 -> 0 | D183: =الاصناف!C183 -> 0 | E183: =SUMIF(الاصناف!$B$4:$B$999,C183,الاصناف!$A$4:B1180) -> 0 | F183: =SUMIF(مشتريات!$B$4:$B$9000,$E183,مشتريات!$E$4:$E$5000) -> 0 | G183: =SUMIF(مبيعات!$B$4:$B$9000,$E183,مبيعات!$E$4:$E$5000) -> 0 | H183: 0 | I183: 0
B184: 181 | C184: =الاصناف!B184 -> 0 | D184: =الاصناف!C184 -> 0 | E184: =SUMIF(الاصناف!$B$4:$B$999,C184,الاصناف!$A$4:B1181) -> 0 | F184: =SUMIF(مشتريات!$B$4:$B$9000,$E184,مشتريات!$E$4:$E$5000) -> 0 | G184: =SUMIF(مبيعات!$B$4:$B$9000,$E184,مبيعات!$E$4:$E$5000) -> 0 | H184: 0 | I184: 0
B185: 182 | C185: =الاصناف!B185 -> 0 | D185: =الاصناف!C185 -> 0 | E185: =SUMIF(الاصناف!$B$4:$B$999,C185,الاصناف!$A$4:B1182) -> 0 | F185: =SUMIF(مشتريات!$B$4:$B$9000,$E185,مشتريات!$E$4:$E$5000) -> 0 | G185: =SUMIF(مبيعات!$B$4:$B$9000,$E185,مبيعات!$E$4:$E$5000) -> 0 | H185: 0 | I185: 0
B186: 183 | C186: =الاصناف!B186 -> 0 | D186: =الاصناف!C186 -> 0 | E186: =SUMIF(الاصناف!$B$4:$B$999,C186,الاصناف!$A$4:B1183) -> 0 | F186: =SUMIF(مشتريات!$B$4:$B$9000,$E186,مشتريات!$E$4:$E$5000) -> 0 | G186: =SUMIF(مبيعات!$B$4:$B$9000,$E186,مبيعات!$E$4:$E$5000) -> 0 | H186: 0 | I186: 0
B187: 184 | C187: =الاصناف!B187 -> 0 | D187: =الاصناف!C187 -> 0 | E187: =SUMIF(الاصناف!$B$4:$B$999,C187,الاصناف!$A$4:B1184) -> 0 | F187: =SUMIF(مشتريات!$B$4:$B$9000,$E187,مشتريات!$E$4:$E$5000) -> 0 | G187: =SUMIF(مبيعات!$B$4:$B$9000,$E187,مبيعات!$E$4:$E$5000) -> 0 | H187: 0 | I187: 0
B188: 185 | C188: =الاصناف!B188 -> 0 | D188: =الاصناف!C188 -> 0 | E188: =SUMIF(الاصناف!$B$4:$B$999,C188,الاصناف!$A$4:B1185) -> 0 | F188: =SUMIF(مشتريات!$B$4:$B$9000,$E188,مشتريات!$E$4:$E$5000) -> 0 | G188: =SUMIF(مبيعات!$B$4:$B$9000,$E188,مبيعات!$E$4:$E$5000) -> 0 | H188: 0 | I188: 0
B189: 186 | C189: =الاصناف!B189 -> 0 | D189: =الاصناف!C189 -> 0 | E189: =SUMIF(الاصناف!$B$4:$B$999,C189,الاصناف!$A$4:B1186) -> 0 | F189: =SUMIF(مشتريات!$B$4:$B$9000,$E189,مشتريات!$E$4:$E$5000) -> 0 | G189: =SUMIF(مبيعات!$B$4:$B$9000,$E189,مبيعات!$E$4:$E$5000) -> 0 | H189: 0 | I189: 0
B190: 187 | C190: =الاصناف!B190 -> 0 | D190: =الاصناف!C190 -> 0 | E190: =SUMIF(الاصناف!$B$4:$B$999,C190,الاصناف!$A$4:B1187) -> 0 | F190: =SUMIF(مشتريات!$B$4:$B$9000,$E190,مشتريات!$E$4:$E$5000) -> 0 | G190: =SUMIF(مبيعات!$B$4:$B$9000,$E190,مبيعات!$E$4:$E$5000) -> 0 | H190: 0 | I190: 0
B191: 188 | C191: =الاصناف!B191 -> 0 | D191: =الاصناف!C191 -> 0 | E191: =SUMIF(الاصناف!$B$4:$B$999,C191,الاصناف!$A$4:B1188) -> 0 | F191: =SUMIF(مشتريات!$B$4:$B$9000,$E191,مشتريات!$E$4:$E$5000) -> 0 | G191: =SUMIF(مبيعات!$B$4:$B$9000,$E191,مبيعات!$E$4:$E$5000) -> 0 | H191: 0 | I191: 0
B192: 189 | C192: =الاصناف!B192 -> 0 | D192: =الاصناف!C192 -> 0 | E192: =SUMIF(الاصناف!$B$4:$B$999,C192,الاصناف!$A$4:B1189) -> 0 | F192: =SUMIF(مشتريات!$B$4:$B$9000,$E192,مشتريات!$E$4:$E$5000) -> 0 | G192: =SUMIF(مبيعات!$B$4:$B$9000,$E192,مبيعات!$E$4:$E$5000) -> 0 | H192: 0 | I192: 0
B193: 190 | C193: =الاصناف!B193 -> 0 | D193: =الاصناف!C193 -> 0 | E193: =SUMIF(الاصناف!$B$4:$B$999,C193,الاصناف!$A$4:B1190) -> 0 | F193: =SUMIF(مشتريات!$B$4:$B$9000,$E193,مشتريات!$E$4:$E$5000) -> 0 | G193: =SUMIF(مبيعات!$B$4:$B$9000,$E193,مبيعات!$E$4:$E$5000) -> 0 | H193: 0 | I193: 0
B194: 191 | C194: =الاصناف!B194 -> 0 | D194: =الاصناف!C194 -> 0 | E194: =SUMIF(الاصناف!$B$4:$B$999,C194,الاصناف!$A$4:B1191) -> 0 | F194: =SUMIF(مشتريات!$B$4:$B$9000,$E194,مشتريات!$E$4:$E$5000) -> 0 | G194: =SUMIF(مبيعات!$B$4:$B$9000,$E194,مبيعات!$E$4:$E$5000) -> 0 | H194: 0 | I194: 0
B195: 192 | C195: =الاصناف!B195 -> 0 | D195: =الاصناف!C195 -> 0 | E195: =SUMIF(الاصناف!$B$4:$B$999,C195,الاصناف!$A$4:B1192) -> 0 | F195: =SUMIF(مشتريات!$B$4:$B$9000,$E195,مشتريات!$E$4:$E$5000) -> 0 | G195: =SUMIF(مبيعات!$B$4:$B$9000,$E195,مبيعات!$E$4:$E$5000) -> 0 | H195: 0 | I195: 0
B196: 193 | C196: =الاصناف!B196 -> 0 | D196: =الاصناف!C196 -> 0 | E196: =SUMIF(الاصناف!$B$4:$B$999,C196,الاصناف!$A$4:B1193) -> 0 | F196: =SUMIF(مشتريات!$B$4:$B$9000,$E196,مشتريات!$E$4:$E$5000) -> 0 | G196: =SUMIF(مبيعات!$B$4:$B$9000,$E196,مبيعات!$E$4:$E$5000) -> 0 | H196: =F196-G196 -> 0 | I196: 0
B197: 194 | C197: =الاصناف!B197 -> 0 | D197: =الاصناف!C197 -> 0 | E197: =SUMIF(الاصناف!$B$4:$B$999,C197,الاصناف!$A$4:B1194) -> 0 | F197: =SUMIF(مشتريات!$B$4:$B$9000,$E197,مشتريات!$E$4:$E$5000) -> 0 | G197: =SUMIF(مبيعات!$B$4:$B$9000,$E197,مبيعات!$E$4:$E$5000) -> 0 | H197: 0 | I197: =H197/12 -> 0
B198: 195 | C198: =الاصناف!B198 -> 0 | D198: =الاصناف!C198 -> 0 | E198: =SUMIF(الاصناف!$B$4:$B$999,C198,الاصناف!$A$4:B1195) -> 0 | F198: =SUMIF(مشتريات!$B$4:$B$9000,$E198,مشتريات!$E$4:$E$5000) -> 0 | G198: =SUMIF(مبيعات!$B$4:$B$9000,$E198,مبيعات!$E$4:$E$5000) -> 0 | H198: 0 | I198: 0
B199: =IF(C199<>"",B198+1,"") -> 196 | C199: =الاصناف!B199 -> 0 | D199: =الاصناف!C199 -> 0 | E199: =SUMIF(الاصناف!$B$4:$B$999,C199,الاصناف!$A$4:B1196) -> 0 | F199: =SUMIF(مشتريات!$B$4:$B$9000,$E199,مشتريات!$E$4:$E$5000) -> 0 | G199: =SUMIF(مبيعات!$B$4:$B$9000,$E199,مبيعات!$E$4:$E$5000) -> 0 | H199: 0 | I199: 0
B200: 197 | C200: =الاصناف!B200 -> 0 | D200: =الاصناف!C200 -> 0 | E200: =SUMIF(الاصناف!$B$4:$B$999,C200,الاصناف!$A$4:B1197) -> 0 | F200: =SUMIF(مشتريات!$B$4:$B$9000,$E200,مشتريات!$E$4:$E$5000) -> 0 | G200: =SUMIF(مبيعات!$B$4:$B$9000,$E200,مبيعات!$E$4:$E$5000) -> 0 | H200: 0 | I200: 0
B201: 198 | C201: =الاصناف!B201 -> 0 | D201: =الاصناف!C201 -> 0 | E201: =SUMIF(الاصناف!$B$4:$B$999,C201,الاصناف!$A$4:B1198) -> 0 | F201: =SUMIF(مشتريات!$B$4:$B$9000,$E201,مشتريات!$E$4:$E$5000) -> 0 | G201: =SUMIF(مبيعات!$B$4:$B$9000,$E201,مبيعات!$E$4:$E$5000) -> 0 | H201: 0 | I201: 0
... 799 more rows

Sheet الاصناف
B2: قـــائمــــــة الاصــــــــــــناف
A3: كود الصنف | B3: أســــم الــصــنــف | C3: الــوحـــده | D3: مــلاحــظـــات
A4: =IF(B4<>"",1,"") -> 1 | B4: كريم شعر حلو قوى | C4: علبة
A5: =IF(B5<>"",A4+1,"") -> 2 | B5: معجون اسنان جميل | C5: انبوبة
A37: =IF(B37<>"",A36+1,"") -> 
A69: =IF(B69<>"",A68+1,"") -> 
A101: =IF(B101<>"",A100+1,"") -> 
A133: =IF(B133<>"",A132+1,"") -> 
A165: =IF(B165<>"",A164+1,"") -> 
A197: =IF(B197<>"",A196+1,"") -> 
A198: =IF(B198<>"",A197+1,"") -> 
A199: =IF(B199<>"",A198+1,"") -> 
A200: =IF(B200<>"",A199+1,"") -> 
A201: =IF(B201<>"",A200+1,"") -> 
A265: =IF(B265<>"",A264+1,"") -> 
A329: =IF(B329<>"",A328+1,"") -> 
A393: =IF(B393<>"",A392+1,"") -> 
A457: =IF(B457<>"",A456+1,"") -> 
A521: =IF(B521<>"",A520+1,"") -> 
A585: =IF(B585<>"",A584+1,"") -> 
A649: =IF(B649<>"",A648+1,"") -> 
A713: =IF(B713<>"",A712+1,"") -> 
A777: =IF(B777<>"",A776+1,"") -> 
A841: =IF(B841<>"",A840+1,"") -> 
A905: =IF(B905<>"",A904+1,"") -> 
A969: =IF(B969<>"",A968+1,"") -> 

Sheet العملاء
A2: قائمة العملاء
A3: مسلسل | B3: أســــم العميل | C3: رقم التليفون | D3: العنوان
A4: =IF(B4<>"",1,"") -> 1 | B4: فكرى
A5: =IF(B5<>"",A4+1,"") -> 
A69: =IF(B69<>"",A68+1,"") -> 
A133: =IF(B133<>"",A132+1,"") -> 
A197: =IF(B197<>"",A196+1,"") -> 
A198: =IF(B198<>"",A197+1,"") -> 
A199: =IF(B199<>"",A198+1,"") -> 
A200: =IF(B200<>"",A199+1,"") -> 
A201: =IF(B201<>"",A200+1,"") -> 
A265: =IF(B265<>"",A264+1,"") -> 
A329: =IF(B329<>"",A328+1,"") -> 
A393: =IF(B393<>"",A392+1,"") -> 
A457: =IF(B457<>"",A456+1,"") -> 
A521: =IF(B521<>"",A520+1,"") -> 
A585: =IF(B585<>"",A584+1,"") -> 
A649: =IF(B649<>"",A648+1,"") -> 
A713: =IF(B713<>"",A712+1,"") -> 
A777: =IF(B777<>"",A776+1,"") -> 
A841: =IF(B841<>"",A840+1,"") -> 
A905: =IF(B905<>"",A904+1,"") -> 
A969: =IF(B969<>"",A968+1,"") -> 

Sheet الموردين
A2: قائمة الموردين
A3: مسلسل | B3: أســــم المورد | C3: رقم التليفون | D3: العنوان
A4: =IF(B4<>"",1,"") -> 1 | B4: وش السعد
A5: =IF(B5<>"",A4+1,"") -> 
A69: =IF(B69<>"",A68+1,"") -> 
A133: =IF(B133<>"",A132+1,"") -> 
A197: =IF(B197<>"",A196+1,"") -> 
A198: =IF(B198<>"",A197+1,"") -> 
A199: =IF(B199<>"",A198+1,"") -> 
A200: =IF(B200<>"",A199+1,"") -> 
A201: =IF(B201<>"",A200+1,"") -> 
A265: =IF(B265<>"",A264+1,"") -> 
A329: =IF(B329<>"",A328+1,"") -> 
A393: =IF(B393<>"",A392+1,"") -> 
A457: =IF(B457<>"",A456+1,"") -> 
A521: =IF(B521<>"",A520+1,"") -> 
A585: =IF(B585<>"",A584+1,"") -> 
A649: =IF(B649<>"",A648+1,"") -> 
A713: =IF(B713<>"",A712+1,"") -> 
A777: =IF(B777<>"",A776+1,"") -> 
A841: =IF(B841<>"",A840+1,"") -> 
A905: =IF(B905<>"",A904+1,"") -> 
A969: =IF(B969<>"",A968+1,"") -> 

Sheet الفاتورة
C2: فـــــاتــورة :
A3: التاريخ: | G3: =IF($D$2="مبيعات","العميل","المورد") -> المورد | O3: دستة | P3: 12
G4: رقــــم الفــــــاتـــورة | I4: =IF($D$2="مبيعات",MAX(مبيعات!$L$4:$L$1892)+1,MAX(مشتريات!$L$4:$L$1500)+1) -> 3 | O4: نصف دستة | P4: 6
A5: مسلسل | B5: كود الصنف | C5: اسم الصنف | D5: نوع | E5: كمية | F5: عدد | G5: سعر | H5: اجمالى | I5: ملاحظات | J5: التــاريــخ | K5: إسم المورد | L5: رقـــم الفــاتورة | M5: قيمة الوحدة | O5: عدد | P5: 1
A6: =IF($C$6="","",1) ->  | B6: =IFERROR(INDEX(الاصناف!A:A,MATCH($C6,الاصناف!B:B,0)),"") ->  | F6: =IFERROR($E6*VLOOKUP($D6,$O$3:$P$5,2,0),"") ->  | H6: =IF(AND(E6="",G6=""),"",E6*G6) ->  | J6: =IF(B6="","",$C$3) ->  | K6: =IF(B6="","",$H$3) ->  | L6: =IF(B6="","",$I$4) ->  | M6: =IF(D6=$O$3,G6/$P$3,IF(D6=$O$4,G6/$P$4,IF(D6=$O$5,G6,"-"))) -> -
A7: =IF(C7="","",A6+1) ->  | B7: =IFERROR(INDEX(الاصناف!A:A,MATCH($C7,الاصناف!B:B,0)),"") ->  | H7: =IF(AND(E7="",G7=""),"",E7*G7) ->  | J7: =IF(B7="","",$C$3) ->  | K7: =IF(B7="","",$H$3) ->  | L7: =IF(B7="","",$I$4) ->  | M7: =IF(D7=$O$3,G7/$P$3,IF(D7=$O$4,G7/$P$4,IF(D7=$O$5,G7,"-"))) -> -
A8: =IF(C8="","",A7+1) ->  | B8: =IFERROR(INDEX(الاصناف!A:A,MATCH($C8,الاصناف!B:B,0)),"") ->  | M8: -
B9: =IFERROR(INDEX(الاصناف!A:A,MATCH($C9,الاصناف!B:B,0)),"") ->  | M9: -
B10: =IFERROR(INDEX(الاصناف!A:A,MATCH($C10,الاصناف!B:B,0)),"") ->  | M10: -
B11: =IFERROR(INDEX(الاصناف!A:A,MATCH($C11,الاصناف!B:B,0)),"") ->  | M11: -
B12: =IFERROR(INDEX(الاصناف!A:A,MATCH($C12,الاصناف!B:B,0)),"") ->  | M12: -
B13: =IFERROR(INDEX(الاصناف!A:A,MATCH($C13,الاصناف!B:B,0)),"") ->  | M13: -
B14: =IFERROR(INDEX(الاصناف!A:A,MATCH($C14,الاصناف!B:B,0)),"") ->  | M14: -
B15: =IFERROR(INDEX(الاصناف!A:A,MATCH($C15,الاصناف!B:B,0)),"") ->  | M15: -
B16: =IFERROR(INDEX(الاصناف!A:A,MATCH($C16,الاصناف!B:B,0)),"") ->  | M16: -
B17: =IFERROR(INDEX(الاصناف!A:A,MATCH($C17,الاصناف!B:B,0)),"") ->  | M17: -
B18: =IFERROR(INDEX(الاصناف!A:A,MATCH($C18,الاصناف!B:B,0)),"") ->  | M18: -
B19: =IFERROR(INDEX(الاصناف!A:A,MATCH($C19,الاصناف!B:B,0)),"") ->  | M19: -
J20: =IF(B20="","",$C$3) ->  | K20: =IF(B20="","",$H$3) ->  | L20: =IF(B20="","",$I$4) ->  | M20: =IF(D20=$O$3,G20/$P$3,IF(D20=$O$4,G20/$P$4,IF(D20=$O$5,G20,"-"))) -> -
B22: أجمالي الفاتورة : | D22: =SUM($H$6:$H$20) -> 0 | J22: مبيعـــــات
J23: مشتريات
D24: =NumtoTxt($D$22,"جنيه","قرش") -> صفر | J24: آجــــــــل

Sheet مصروفات

Sheet ارباح وخسائر

Sheet ميزانية
